{"text_format":"1","workbook":"xlsx","n_sheets":22,"sheets":["Cover Page","Contents","Facility Info","Operational Data","Operational Summary","Perf. Form 1","Energy Form 1","Permit Compliance","Improvements","Public Liasion","CO2 N20","Residue Quality ","Water","Air (periodic)","Air (CEMS)","HCl","SO2","NOx","TOC","Particulates","CO 95% 10 min","NH3"],"not_rendered":{"charts":7,"images":3,"macros":1,"external_links":1,"defined_names":21,"comments":0,"pivot_tables":0},"unopened":[],"bounds":{"document_bytes":16777216,"sheet_cells":100000,"rows_first":2000,"rows_last":500,"rows_between":2000,"halvings":0,"cell_chars":16384,"cell_head_chars":4096},"cells_cut":0,"cells_raw":0,"read":"whole","date_system":"1900"}

{"sheet":"Cover Page","index":0,"n_rows":53,"n_cols":14,"rows_kept":53,"cut":false,"hidden":false,"merged":[[13,13,18,15],[34,1,34,8],[0,3,5,6],[7,1,23,8],[28,1,28,8],[30,1,30,8],[32,1,32,8],[48,2,48,3],[48,6,48,8],[52,2,52,3],[36,1,36,8],[40,2,40,8],[42,2,42,4],[44,2,44,4],[46,2,46,3],[46,6,46,8]]}
[null,null,null,"Add company logo"]
[null,null,null,null,null,null,null,null,null,null,null,null,null,"Version 22.3  30/11/22"]
[]
[]
[]
[]
[]
[null,"Add photo"]
[]
[]
[]
[]
[null,null,null,null,null,null,null,null,null,null,null,null,null,"Notes:"]
[null,null,null,null,null,null,null,null,null,null,null,null,null,"This template may require adjustments by individual operators to meet specific reporting requirements as defined in the site Permit(s)"]
[]
[]
[]
[]
[]
[]
[]
[]
[]
[]
[]
[]
[]
[]
[null,"Annual Performance Report 2022"]
[]
[null,"Permit EPR/XP3436WB/V002"]
[]
[null,"SUEZ R&R Wilton 11 EfW"]
[]
[null,"other name of facility (if applicable)"]
[]
[null,"SUEZ R&R"]
[]
[null,"Year:",2022]
[]
[null,"Address:","Wilton International, Middlesbrough TS10 4RG"]
[]
[null,"Tel: ","01642 442400"]
[]
[null,"Email: ","paula.bakes@suez.com"]
[]
[null,"Prepared by:","Paula Bakes",null,null,"Position:","EIR Manager"]
[]
[null,"Approved by:","Alex Biggins",null,null,"Position:","Plant Manager"]
[]
[null,"Version:",1]
[]
[null,"Issue Date:","2022-01-12"]

{"sheet":"Contents","index":1,"n_rows":45,"n_cols":11,"rows_kept":45,"cut":false,"hidden":false,"merged":[[4,10,7,14],[8,1,8,6],[3,1,3,6],[4,1,4,6],[5,1,5,6],[6,1,6,6],[7,1,7,6],[21,1,21,6],[9,1,9,6],[10,1,10,6],[11,1,11,6],[13,1,13,6],[14,1,14,6],[15,1,15,6],[16,1,16,6],[17,1,17,6],[18,1,18,6],[19,1,19,6],[20,1,20,6],[12,1,12,6],[36,1,36,6],[22,1,22,6],[23,1,23,6],[24,1,24,6],[27,1,27,6],[28,1,28,6],[29,1,29,6],[30,1,30,6],[31,1,31,6],[32,1,32,6],[35,1,35,6],[44,0,47,9],[37,1,37,6],[38,1,38,6],[39,1,39,6],[40,1,40,6],[41,1,41,6],[42,1,42,6]]}
[{"$f":"+'Cover Page'!$B$29","v":"Annual Performance Report 2022"},null,null,null,{"$f":"+'Cover Page'!$B$33","v":"SUEZ R&R Wilton 11 EfW"}]
[]
["Contents",null,null,null,null,null,null,null,null,null,"Notes:"]
["Section","Subject",null,null,null,null,null,"Page ",null,null,"Section references and Page nos. to be inserted"]
[null,"Facility Information",null,null,null,null,null,null,null,null,"Sections and Subjects may require adjustment by individual operators to meet specific reporting requirements as defined in the sites Permit(s)"]
[null,"Operational Summary"]
[null,"Operational Data"]
[null,"Performance Form 1"]
[null,"Energy Form 1"]
[null,"Permit Compliance"]
[null,"Improvements"]
[null,"Public Liasion"]
[null,"Carbon dioxide and nitrous oxide emissions"]
[null,"Residue Quality - Optional"]
[null,"Emissions to Water"]
[null,"Emissions to Air (periodically monitored)"]
[null,"Emissions to Air (continuously monitored)"]
[null,"Hydrogen Chloride emissions"]
[null,"Sulphur Dioxdie emsissions"]
[null,"Oxides of Notrigen emissions"]
[null,"Total Organic Carbon emissions"]
[null,"Particulate Matter emissions"]
[null,"Carbon Monoxide emissions"]
[null,"Ammonia emissions"]
[]
[]
["Version Control"]
["Section","Information",null,null,null,null,null,"Date"]
[]
[]
[]
[]
[]
[]
["Distribution"]
["Copy","Name, Role",null,null,null,null,null,"No."]
[]
[]
[]
[]
[]
[]
[]
[]
["This report is required under the Industrial Emissions Directive’s Article 55(2) requirements on reporting and public information on waste incineration plants and co-incineration plants, which require the operator to produce an annual report on the functioning and monitoring of the plant and make it available to the public. "]

{"sheet":"Facility Info","index":2,"n_rows":22,"n_cols":11,"rows_kept":22,"cut":false,"hidden":false,"merged":[[4,0,17,8],[21,0,53,8],[4,10,13,13],[21,10,30,13]]}
[{"$f":"+'Cover Page'!$B$29","v":"Annual Performance Report 2022"},null,null,null,{"$f":"+'Cover Page'!$B$33","v":"SUEZ R&R Wilton 11 EfW"}]
[]
["Plant Description and Design",null,null,null,null,null,null,null,null,null,"Notes:"]
[]
["The Energy from Waste facility operates 24/7 and has a design capacity of 49.9 MW. This requires a fuel input with a maximum continuous rating of around 29.2 tonnes per hour of MSW (from Merseyside County Council and various commercial customers) with an average net calorific value of 9.8 MJ/kg. This equates to 467,200 tonnes per annum at 8000 hours operation per annum through two combustion lines. \n\nThe plant has two Lines capable of processing up to 500,000 tonnes of waste per year. Incoming waste is delivered to site by rail and bulk vehicle trucks. Rail waste is checked at SUEZ’s Knowsley Transfer station, weighed and then loaded into ISO containers before being placed onto rail carriages and transported to the EFW facility. \n\nRoad waste is weighed via weighbridge at the Wilton site, and then tipped in the traditional way in the waste reception hall.\n(alt enter to make new para)",null,null,null,null,null,null,null,null,null,"Include summary of plant design, design capacity, no. of combustion lines, electrical and heat capacity and any other general information that descibes the facility, its location and purpose "]
[]
[]
[]
[]
[]
[]
[]
[]
[]
[]
[]
[]
[]
[]
["Summary of Operational Processes and Procedures"]
[]
["WASTE RECEPTION\nThe plant is designed to accept contractual waste from Merseyside County Council via rail in bespoke ISO containers. Once at the EFW plant, the containers are lifted off the rail carriages by a gantry crane and placed onto mechanical ‘tilters’ The tilters operate hydraulically and move to the edge of the waste pit waste before being tilted to a 60 degree angle, allowing the waste to fall into the waste pit.\n\nWaste is also delivered by road via Bulk Transfer Vehicles in the standard operating way. \nAir needed for combustion is drawn into the furnace from above the waste reception hall so that odour and dust do not escape from the building.\n\nBUNKER\nMixing of waste occurs as the crane driver sorts the waste looking for unsuitable wastes to be removed, and to improve the homogeneity of the incinerator feedstock. \n\nCONTROL ROOM\nThere is one control room which centralises the operation of all equipment, including the grab crane used to mix and load waste into hoppers that feeds the furnace. All on-site functions are monitored automatically and manually. Its systems verify in real time that equipment is functioning properly, continuously monitor the combustion gas, and maximise the efficiency of the entire EfW process.\n\nGRATE AND BOILER\nWaste is lifted into the feed hoppers by the crane, from here waste falls into the furnace-charging chute and then onto the grate system for incineration. The thermal energy released from the burning is used to convert water to super-heated steam. At high pressure, this steam drives a turbine to generate electricity.\n\nENERGY GENERATION\nElectricity is generated at 11kv, with an electric capacity of 49.9 MWh.  The plant also has the capability of exporting steam at 3 different pressures, 58 bar(g), 17 bar(g) and 1.4 bar(g).  Steam is exported into the Wilton International site headers for use by a number of plants on site.  Where possible the steam is taken from turbine extract to ensure maximum efficiency.\n\nBOTTOM ASH\nAsh left on the grate after incineration is carried by conveyor to a recycling facility opposite the EFW plant. Once operational (February 2017) the bottom ash recycling facility will use a magnet above the conveyor to extract ferrous material for recycling. The remaining bottom ash is processed for recycling following classification of its hazardous properties. \n\nWATER-COOLED CONDENSERS\nAfter exiting the turbine, the steam is cooled and condensed back into water through water cooled condensers. This recovered water is treated and reused in the boilers to produce more steam. The water cooled condenser is capable of taking the full load from the boiler to ensure continuous operation of the EfW Plant.\n\nEMISSION CONTROL\nThe gases from the furnace are subject to a rigorous cleaning process involving selective non-catalytic reduction (SNCR), spray absorbers, and active carbon injection. This removes oxides of nitrogen, acidic gases, dioxins, and heavy metals from the gas stream.\n\nAIR POLLUTION CONTROL RESIDUE (APCR)\nThe cleaned gas is passed through fine-fabric bag filters to remove solid particles before it is emitted through the stack. The resultant APCR residue, or fly-ash, contains particles from the incineration process, we have a semi dry lime injection system. It is stored in a sealed silo until it removed from site for disposal.\n\nEMISSIONS MONITORING\nAs they pass through the stack, the residual flue gases from the process are continuously monitored before release. Each incinerator line has and independent stack and emissions monitoring system. This data is relayed automatically to the control room.\n(alt enter to make new para)",null,null,null,null,null,null,null,null,null,"Include summary of key processes and procedures such as (but not limited to); waste reception, control rooms, grate, bed and bolier, energy & heat  generation, cooling systems, residue management, emission controls, health and safety systems, maintenance"]

{"sheet":"Operational Data","index":3,"n_rows":63,"n_cols":8,"rows_kept":63,"cut":false,"hidden":false,"merged":[[32,1,37,1],[29,2,29,5],[29,6,29,7],[3,1,3,2],[7,1,19,1],[22,1,25,1],[27,1,28,1]]}
[{"$f":"+'Cover Page'!$B$29","v":"Annual Performance Report 2022"},null,null,null,{"$f":"+'Cover Page'!$B$33","v":"SUEZ R&R Wilton 11 EfW"}]
[]
["Operational Data"]
["Plant Size",500000,null,"tonnes pa",170,"MWth",49,"MWe"]
["No. of combustion lines",2,null,"No. of Turbines:",null,1]
[]
["Waste types received","Unit","Q1","Q2","Q3","Q4","Year Total","%"]
["Household / Local Authority","tonnes",123564,100109,78652,49553,{"$f":"SUM(C8:F8)","v":351878},{"$f":"IF(G8>0,G8/$G$18,\"-\")","v":0.98789132796729839}]
["Commercial & Industrial ",null,3088," -   "," -   "," -   ",{"$f":"SUM(C9:F9)","v":3088},8.669505967304059E-3]
["Hazardous ",null," -   "," -   "," -   "," -   ",0,"-"]
["Clinical",null," -   "," -   "," -   "," -   ",0,"-"]
["Waste wood (biomass) ",null," -   "," -   "," -   "," -   ",0,"-"]
["Refuse derived fuel ",null,129," -   "," -   "," -   ",129,3.6216524280512422E-4]
["Solid recovered fuel ",null,1096," -   "," -   "," -   ",1096,3.077000822592373E-3]
["Spec Compost 19.05.03",null,null,null,null,null,0,"-"]
["Other [Please specify]",null,null,null,null,null,0,"-"]
["Other [Please specify]"]
["Total waste received",null,{"$f":"SUM(C8:C17)","v":127877},{"$f":"SUM(D8:D17)","v":100109},{"$f":"SUM(E8:E17)","v":78652},{"$f":"SUM(F8:F17)","v":49553},{"$f":"SUM(G8:G17)","v":356191},1]
["Rejected Waste ",null,0,0,0,0,{"$f":"SUM(C19:F19)","v":0},{"$f":"IF(G19>0,G19/$G$18,\"-\")","v":"-"}]
["Waste transferred out",null,0,2,55,77,{"$f":"SUM(C20:F20)","v":134},{"$f":"IF(G20>0,G20/$G$18,\"-\")","v":3.7620265531695073E-4}]
["Total waste combusted",null,{"$f":"C18-SUM(C19:C20)","v":127877},{"$f":"D18-SUM(D19:D20)","v":100107},78597,49476,{"$f":"SUM(C21:F21)","v":356057},{"$f":"IF(G21>0,G21/$G$18,\"-\")","v":0.9996237973446831}]
["Energy Useage / Export","Unit","Q1","Q2","Q3","Q4","Year Total","KWh/te"]
["Power Generated","MWh",46239,43533,36934,18216,{"$f":"SUM(C23:F23)","v":144922},{"$f":"IF(G23>0,G23*1000/$G$21,\"-\")","v":407.0191008742982}]
["Power Exported",null,36917,34490,29045,13414,{"$f":"SUM(C24:F24)","v":113866},{"$f":"IF(G24>0,G24*1000/$G$21,\"-\")","v":319.79711113670004}]
["Power Used on site",null,9323,9043,7889,4802,{"$f":"SUM(C25:F25)","v":31057},{"$f":"IF(G25>0,G25*1000/$G$21,\"-\")","v":87.224798276680417}]
["Power Imported",null,48,205,163,1168,1584,{"$f":"IF(G26>0,G26*1000/$G$21,\"-\")","v":4.4487259062453486}]
["Parasitic Load","%",0.20200000000000001,0.21099999999999999,0.217,0.308,{"$f":"IF(G23>0,1-G24/(G23+G26),\"-\")","v":0.22278951032722205}]
["Thermal Energy Produced","MWh",null,null,null,null,{"$f":"SUM(C28:F28)","v":0},{"$f":"IF(G28>0,G28*1000/$G$21,\"-\")","v":"-"}]
["Thermal Energy Exported",null,null,null,null,null,0,{"$f":"IF(G29>0,G29*1000/$G$21,\"-\")","v":"-"}]
["R1 value",null,0.83,null,null,null,"Design / Operational / n/a"]
[]
["Waste Disposal & Recovery","Unit","Q1","Q2","Q3","Q4","Year Total","% inputs"]
["APC Residues - produced","tonnes",2332,1881,1614,1047,{"$f":"SUM(C33:F33)","v":6874},{"$f":"IF(G33>0,G33/$G$21,\"-\")","v":1.9305897651218765E-2}]
["IBA - produced",null,29694,22365,19197,11114,82370,{"$f":"IF(G34>0,G34/$G$21,\"-\")","v":0.23133936420292256}]
["Metals recycling",null,5055,3582,3480,1322,{"$f":"SUM(C35:F35)","v":13439},3.7743956726029822E-2]
["Ferrous",null,3203,2051,2085,672,{"$f":"SUM(C36:F36)","v":8011},2.2499206587709271E-2]
["Non Ferrous",null,1852,1529,1379,611,5371,1.508466341063369E-2]
["Mixed Metal Skips (Scrap Metal Skips)",null," -   ",3,16,39,58,1.6289526676908472E-4]
[]
["Raw Material Usage","Unit","Q1","Q2","Q3","Q4","Year Total","kg or Ltr /te"]
["Mains Water","m3",0,0,0,0,{"$f":"SUM(C41:F41)","v":0},{"$f":"IF(G41>0,G41/$G$21,\"-\")","v":"-"}]
["Other Water ( Demin & Raw)","m3",0,0,0,0,0,{"$f":"IF(G42>0,G42/$G$21,\"-\")","v":"-"}]
["Ammonia / Urea","kgs",509300,428500,350500,170000,1458300,4.0956925436095908]
["Activated Carbon","kgs",26220,18360,15300,10400,70280,0.19738412669881508]
["Lime / hydrated lime","kgs",1032400,871200,734840,433340,3071780,8.6272141819989496]
["Fuel oil (Mobile Plant)","ltrs",879,1033,7032,16833,25777,7.2395711922529263E-2]
["Natural Gas","MWh",1304,2549,2576,3987,10416,2.9253743080461837E-2]
["Other",null,0,0,0,0,0,"-"]
[]
["Summary of Hours","Line/Unit","Q1","Q2","Q3","Q4","Year Total"]
["Hours of waste combustion, total",1,2159,1559.7,1303.7,1122.7,{"$f":"SUM(C51:F51)","v":6145.0999999999995},{"$f":"+(G51)/8760","v":0.70149543378995427}]
["Hours of waste combustion, total",2,2070.8000000000002,1684.8,1721,633.79999999999995,6110.4000000000005,{"$f":"+(G52)/8760","v":0.69753424657534258}]
["Hours of waste combustion, total",3,null,null,null,null,0,"x %"]
["Hours of waste combustion, total",4,null,null,null,null,0,"x %"]
["Hours of waste combustion, total",5,null,null,null,null,{"$f":"SUM(C55:F55)","v":0},"x %"]
["Overall Avaliability, mean average of all lines",null,null,null,null,null,{"$f":"AVERAGE(G51:G52)","v":6127.75},{"$f":"+(G56)/8760","v":0.69951484018264842}]
["Hours of turbine operations, total",1,1956,2077,1811,1432,7276,"x %"]
["Hours of turbine operations, total",2,null,null,null,null,0,"x %"]
["Hours of heat / steam export",null,44981,22013,16698,8702,92394,{"$f":"IF(B59>0,G58/8760,\"n/a\")","v":"n/a"}]
["Net Calorific Value of waste ","MJ/kg",null,null,null,null,0]
["Abnormal Events","qty.","-",0,0,0,0,{"$f":"IF(G61>0,\"yes\",\"no\")","v":"no"}]
["Abnormal operation","hours","-",0,0,0,0,{"$f":"+(G62)/8760","v":0}]
["Permit Breaches","qty.",1,0,0,0,1,{"$f":"IF(G63>0,\"yes\",\"no\")","v":"yes"}]

{"sheet":"Operational Summary","index":4,"n_rows":31,"n_cols":11,"rows_kept":31,"cut":false,"hidden":false,"merged":[[4,0,26,8],[30,0,51,8],[4,10,13,13],[30,10,39,13]]}
[{"$f":"+'Cover Page'!$B$29","v":"Annual Performance Report 2022"},null,null,null,{"$f":"+'Cover Page'!$B$33","v":"SUEZ R&R Wilton 11 EfW"}]
[]
["Summary of Plant Operations and Maintenance during the reporting year",null,null,null,null,null,null,null,null,null,"Notes:"]
[]
["We have had a very challenging 2022 with tube leaks in the second pass on Line 1 and first pass on Line 2\n\nThe Grate on Line Two had to be brought off line due to blockage in Jan 22, which was subsequently identified as grate bars failure; several grate bars had fractured and fell through to the grate bed causing a build up of ash under the grate.  This problem was shared with the OEM and whilst this is an uncommon failure it was not unique.\n\nThere were 6 tube leaks in Line 1 second pass throughout 2022.  The second pass pendants have now been replaced with incolnel overlayed tube so will eliminate these issues moving forward.\n\nLine 2 has had 3 tube leaks in the 1st pass throughout 2022.  There has been extensive boiler tube and refractory replacement in the planned major outage so this should improve into 2023.\n\nThe turbine was brought off line at Sembcorp request 3 times in 2022 so that Wilton 11 could export steam only.\n\nThere were two planned maintenance periods during 2022; the first being a minor outages planned for the first and second week of April.  The major maintenance activity which was planned over Sep, was extended significantly due to the emergent boiler tube and refractory replacement, FGT plating repairs due to corrosion following technical surveys.  Major maintenance activity included boiler tube repairs, refractory survey and replacement and a minor service on the Grate. The Turbine underwent a minor service with nothing of significance to report and is due the major turbine and generator service in 2023.\n\nThe shutdown periods were:\nLine 1, 1st Sept - 6th Nov 2022\nLine 2, 20th Oct - 25th Dec 2022",null,null,null,null,null,null,null,null,null,"Include summary of key operational and/or maintenance activity undertaken in the year, such as any major component upgrades and/or replacements "]
[]
[]
[]
[]
[]
[]
[]
[]
[]
[]
[]
[]
[]
[]
[]
[]
[]
[]
[]
[]
[]
[]
[]
["Summary of Residue Handling for the reporting year"]
[]
["Residue handling system has performed well in 2022.\n\n",null,null,null,null,null,null,null,null,null,"Include in here a summary of residue handling regimes and destinations "]

{"sheet":"Perf. Form 1","index":5,"n_rows":54,"n_cols":10,"rows_kept":54,"cut":false,"hidden":false,"merged":[[9,0,9,9],[10,0,10,1],[10,2,10,3],[10,4,10,5],[10,6,10,7],[10,8,10,9],[2,0,2,4],[2,6,2,8],[3,1,3,4],[5,3,5,4],[5,6,5,7],[8,0,8,1],[8,2,8,3],[8,4,8,5],[8,6,8,7],[8,8,8,9],[11,0,11,1],[11,2,11,3],[11,4,11,5],[11,6,11,7],[11,8,11,9],[12,0,12,1],[12,2,12,3],[12,4,12,5],[12,6,12,7],[12,8,12,9],[15,0,15,1],[15,2,15,3],[15,4,15,5],[15,6,15,7],[15,8,15,9],[16,0,16,9],[13,0,13,1],[13,2,13,3],[13,4,13,5],[13,6,13,7],[13,8,13,9],[14,0,14,3],[14,4,14,5],[14,6,14,7],[14,8,14,9],[17,0,17,1],[17,2,17,3],[17,4,17,5],[17,6,17,7],[17,8,17,9],[18,0,18,1],[18,2,18,3],[18,4,18,5],[18,6,18,7],[18,8,18,9],[19,0,19,1],[19,2,19,3],[19,4,19,5],[19,6,19,7],[19,8,19,9],[20,0,20,1],[20,2,20,3],[20,4,20,5],[20,6,20,7],[20,8,20,9],[21,0,21,1],[21,2,21,3],[21,4,21,5],[21,6,21,7],[21,8,21,9],[22,0,22,3],[22,4,22,5],[22,6,22,7],[22,8,22,9],[31,0,31,3],[31,7,31,8],[32,0,32,3],[32,4,32,5],[32,7,32,8],[33,0,33,3],[33,4,33,5],[33,7,33,8],[23,0,23,3],[23,4,23,5],[23,6,23,7],[23,8,23,9],[25,0,25,9],[26,0,28,9],[36,0,36,3],[36,4,36,5],[36,7,36,8],[37,0,37,3],[37,4,37,5],[37,7,37,8],[34,0,34,3],[34,4,34,5],[34,7,34,8],[35,0,35,3],[35,4,35,5],[35,7,35,8],[47,0,47,1],[49,0,49,9],[50,0,51,9],[38,0,38,9],[39,0,40,9],[43,0,43,1],[43,2,43,9],[45,0,45,1],[46,0,46,1]]}
[{"$f":"+'Cover Page'!C39","v":2022}," Annual Reporting Performance Form 1"]
[]
[{"$f":"+'Cover Page'!B31","v":"Permit EPR/XP3436WB/V002"},null,null,null,null,"Operator: ",{"$f":"+'Cover Page'!B37:I37","v":0}]
["Facility:",{"$f":"+'Cover Page'!B33:I33","v":"SUEZ R&R Wilton 11 EfW"},null,null,null,"Form:","Performance 1"]
[]
["Reporting  Period from: ",null,null,"January",null,"to:","December"]
[]
[{"$f":"+A1","v":2022},"Annual Reporting of Waste Disposal and Recovery"]
["Waste Description",null,"Disposal Route(s)",null,"Disposal Tonnes",null,"Recovery Tonnes",null,"% / tonne of waste incinerated"]
["1) Hazardous Wastes"]
["APC Residues",null,"Landfill",null,{"$f":"'Operational Data'!G33","v":6874},null,0,null,{"$f":"IF((E11+G11)>0,(E11+G11)/'Operational Data'!$G$21, \"-\")","v":1.9305897651218765E-2}]
["IBA",null,null,null,null,null,null,null,{"$f":"IF((E12+G12)>0,(E12+G12)/'Operational Data'!$G$21, \"-\")","v":"-"}]
[null,null,null,null,null,null,null,null,{"$f":"IF((E13+G13)>0,(E13+G13)/'Operational Data'!$G$21, \"-\")","v":"-"}]
[null,null,null,null,null,null,null,null,{"$f":"IF((E14+G14)>0,(E14+G14)/'Operational Data'!$G$21, \"-\")","v":"-"}]
["Total Hazardous Waste",null,null,null,{"$f":"SUM(E11:F14)","v":6874},null,{"$f":"SUM(G11:H14)","v":0},null,{"$f":"IF((E15+G15)>0,(E15+G15)/'Operational Data'!$G$21, \"-\")","v":1.9305897651218765E-2}]
[]
["2) Non-Hazardous Wastes"]
["IBA",null,"Recovery",null,{"$f":"'Operational Data'!G34","v":82370},null,null,null,{"$f":"IF((E18+G18)>0,(E18+G18)/'Operational Data'!$G$21, \"-\")","v":0.23133936420292256}]
["Total Metals",null,"Recovery",null,{"$f":"'Operational Data'!G35","v":13439},null,null,null,{"$f":"IF((E19+G19)>0,(E19+G19)/'Operational Data'!$G$21, \"-\")","v":3.7743956726029822E-2}]
["Process Water",null,null,null,null,null,null,null,{"$f":"IF((E20+G20)>0,(E20+G20)/'Operational Data'!$G$21, \"-\")","v":"-"}]
[null,null,null,null,null,null,null,null,{"$f":"IF((E21+G21)>0,(E21+G21)/'Operational Data'!$G$21, \"-\")","v":"-"}]
[null,null,null,null,null,null,null,null,{"$f":"IF((E22+G22)>0,(E22+G22)/'Operational Data'!$G$21, \"-\")","v":"-"}]
["Total Non-Hazardous Waste",null,null,null,{"$f":"SUM(E18:F22)","v":95809},null,{"$f":"SUM(G18:H22)","v":0},null,{"$f":"IF((E23+G23)>0,(E23+G23)/'Operational Data'!$G$21, \"-\")","v":0.26908332092895237}]
["TOTAL WASTE",null,null,null,{"$f":"+E23+E15","v":102683},null,{"$f":"+G23+G15","v":0},null,{"$f":"IF((E24+G24)>0,(E24+G24)/'Operational Data'!$G$21, \"-\")","v":0.28838921858017114}]
[]
["Operator’s comments :"]
[]
[]
[]
[]
[{"$f":"+A1","v":2022},"Annual Reporting of Water and Other Raw Material Usage"]
["Raw Material",null,null,null,"Usage",null,"Unit","Specific Useage",null,"Unit"]
["Mains Water",null,null,null,{"$f":"+'Operational Data'!G41","v":0},null,"m3",{"$f":"IF(E33>0,E33/'Operational Data'!$G$21,\"-\")","v":"-"},null,"m3/te"]
["Total Water",null,null,null,{"$f":"+'Operational Data'!G42+'Operational Data'!G41","v":0},null,"m3",{"$f":"IF(E34>0,E34/'Operational Data'!$G$21,\"-\")","v":"-"},null,"m3/te"]
["Urea / Ammonia",null,null,null,{"$f":"+'Operational Data'!G43","v":1458300},null,"kg",{"$f":"IF(E35>0,E35/'Operational Data'!$G$21,\"-\")","v":4.0956925436095908},null,"kg/te"]
["Activated Carbon",null,null,null,{"$f":"+'Operational Data'!G44","v":70280},null,"kg",{"$f":"IF(E36>0,E36/'Operational Data'!$G$21,\"-\")","v":0.19738412669881508},null,"kg/te"]
["Lime / hydrated lime / Sodium Bicarb.",null,null,null,{"$f":"+'Operational Data'!G45","v":3071780},null,"kg",{"$f":"IF(E37>0,E37/'Operational Data'!$G$21,\"-\")","v":8.6272141819989496},null,"kg/te"]
[]
["Operator’s comments :"]
[]
[]
[]
[{"$f":"+A31","v":2022},"Annual Reporting of other performance indicators "]
["Parameter",null,"Results by Line"]
[null,null,"A1","A2","A3","A4","A5",null,"Turbine 1","Turbine 2"]
["Operating hours for the year, hours",null,{"$f":"'Operational Data'!G51","v":6145.0999999999995},{"$f":"'Operational Data'!G52","v":6110.4000000000005}]
["Number of periods of abnormal operation, qty.",null,0,0]
["Cumulative hours of abnormal operation for this year, hours",null,0,0]
[]
["Operator’s comments :"]
[]
[]
[]
["Signed: ",null,null,null,null,null,"Date:"]

{"sheet":"Energy Form 1","index":6,"n_rows":29,"n_cols":7,"rows_kept":29,"cut":false,"hidden":false,"merged":[[2,6,2,8],[4,1,4,4],[6,3,6,4],[6,6,6,7],[8,0,8,2],[8,3,8,4],[8,6,8,8],[9,0,9,2],[9,3,9,4],[9,6,9,8],[10,0,10,2],[10,3,10,4],[10,6,10,8],[11,0,11,2],[11,3,11,4],[11,6,11,8],[12,0,12,2],[12,3,12,4],[12,6,12,8],[13,0,13,2],[13,3,13,4],[13,6,13,8],[14,0,14,2],[14,3,14,4],[14,6,14,8],[15,0,15,2],[15,3,15,4],[15,6,15,8],[17,0,17,8],[18,0,24,8]]}
[{"$f":"+'Cover Page'!C39","v":2022}," Annual Reporting of Energy Usage/Export"]
[]
[{"$f":"+'Cover Page'!B31","v":"Permit EPR/XP3436WB/V002"},null,null,null,null,"Operator: ",{"$f":"+'Cover Page'!B37:I37","v":0}]
[]
["Facility:",{"$f":"+'Cover Page'!B33:I33","v":"SUEZ R&R Wilton 11 EfW"},null,null,null,"Form:","Energy 1"]
[]
["Reporting  Period from: ",null,null,{"$f":"+'Perf. Form 1'!D6:E6","v":"January"},null,"to:",{"$f":"+'Perf. Form 1'!G6:H6","v":"December"}]
[]
["Energy Source",null,null,"Energy Usage",null,"Unit","Specific Useage (KWh/tonne incinerated"]
["Electricity Produced",null,null,{"$f":"+'Operational Data'!G23","v":144922},null,"MWh",{"$f":"+'Operational Data'!H23","v":407.0191008742982}]
["Electricity Imported   ",null,null,{"$f":"+'Operational Data'!G26","v":1584},null,"MWh",{"$f":"+'Operational Data'!H26","v":4.4487259062453486}]
["Electricity Exported",null,null,{"$f":"+'Operational Data'!G24","v":113866},null,"MWh",{"$f":"+'Operational Data'!H24","v":319.79711113670004}]
["Natural Gas",null,null,{"$f":"'Operational Data'!G47","v":10416},null,"tonnes",{"$f":"'Operational Data'!H47","v":2.9253743080461837E-2}]
["Steam/hot water exported",null,null,{"$f":"+'Operational Data'!G29","v":0},null,"GWh",{"$f":"+'Operational Data'!H29","v":"-"}]
[]
[]
[]
["Operator’s comments :"]
[]
[]
[]
[]
[]
[]
[]
[]
[]
[]
["Signed: ",null,null,null,null,null,"Date:"]

{"sheet":"Permit Compliance","index":7,"n_rows":34,"n_cols":8,"rows_kept":34,"cut":false,"hidden":false,"merged":[[33,4,33,8],[9,0,9,1],[9,2,9,4],[9,5,9,8],[7,0,7,1],[7,2,7,8],[8,0,8,1],[8,2,8,4],[8,5,8,8],[10,0,10,1],[10,2,10,4],[10,5,10,8],[11,0,11,1],[11,2,11,4],[11,5,11,8],[12,0,12,1],[12,2,12,4],[12,5,12,8],[13,0,13,1],[13,2,13,4],[13,5,13,8],[14,0,14,1],[14,2,14,4],[14,5,14,8],[15,0,15,1],[16,2,16,4],[16,5,16,8],[15,2,15,4],[15,5,15,8],[16,0,16,1],[19,1,19,3],[19,4,19,6],[19,7,19,9],[20,1,20,3],[20,4,20,6],[20,7,20,9],[24,7,24,9],[21,1,21,3],[21,4,21,6],[21,7,21,9],[22,1,22,3],[22,4,22,6],[22,7,22,9],[32,1,32,3],[32,4,32,6],[32,7,32,9],[29,1,29,3],[29,4,29,6],[29,7,29,9],[30,1,30,3],[30,4,30,6],[30,7,30,9],[26,0,26,10],[18,0,18,10],[31,1,31,3],[31,4,31,6],[31,7,31,9],[27,1,27,3],[27,4,27,6],[27,7,27,9],[28,1,28,3],[28,4,28,6],[28,7,28,9],[23,1,23,3],[23,4,23,6],[23,7,23,9],[24,1,24,3],[24,4,24,6]]}
[{"$f":"+'Cover Page'!$B$29","v":"Annual Performance Report 2022"},null,null,null,{"$f":"+'Cover Page'!$B$33","v":"SUEZ R&R Wilton 11 EfW"}]
[]
["Summary of Permit Compliance"]
[]
["Compliance with permit limits for continuously monitored pollutants"]
[]
["The plant met its emission limits as shown in the table below:"]
["Substance",null,"Percentage time compliant during operation"]
[null,null,"Half-hourly limit",null,null,"Daily limit"]
["Particulates",null,1,null,null,1]
["Oxides of nitrogen",null,1,null,null,1]
["Sulphur dioxide",null,1,null,null,1]
["Carbon monoxide",null," \n100% 95% of 10-min averages",null,null,1]
["Total organic carbon",null,0.99995000000000001,null,null,1]
["Hydrogen chloride",null,1,null,null,1]
["Hydrogen fluoride",null,"NA",null,null,"NA"]
[]
[]
["Summary of any notifications or non-compliances under the permit"]
["Date","Summary of notification or non-compliance [including Line/Reference]",null,null,"Reason ",null,null,"Measures taken to prevent reoccurrence"]
["2022-01-07","W11 001/2022 Line 2 Boiler Trip",null,null,"The Boiler tripped due to an operator error, the operator was being trained on the DCS. The grate feeders stroke lengths and Camera were manually reduced, causing the burners to cut in when the boiler temperature dropped. Waste feed had stopped meaning there was minimal waste on the grates, the burners ramped up and superheater temperatures raised, causing the boiler to trip. The boiler was restarted, but due to ID Fan, primary and secondary air fans being left in manual a breach occurred. \nA trained operator took over and brought the plant back online in a safe and controlled manner. \nNo further mistakes have taken place following a robust training programme. ",null,null,"•\tFull DCS training to be given to new starters/Promotions and signed off\n•\tToolbox talks on reporting of breaches to be given to Shift Teams"]
[]
[]
[]
[]
[]
["Summary of any complaints received and actions to taken to resolve them."]
["Date","Summary of complaint [including Line/Reference]",null,null,"Reason *",null,null,"Measures taken to prevent reoccurrence"]
[]
[]
[]
[]
[]
[null,null,null,null,"* including whether substantiated by the operator or the EA"]

{"sheet":"Improvements","index":8,"n_rows":39,"n_cols":5,"rows_kept":39,"cut":false,"hidden":false,"merged":[[37,0,37,9],[38,0,47,9],[4,0,4,9],[5,0,13,9],[15,0,15,9],[16,0,24,9],[26,0,26,9],[27,0,35,9]]}
[{"$f":"+'Cover Page'!$B$29","v":"Annual Performance Report 2022"},null,null,null,{"$f":"+'Cover Page'!$B$33","v":"SUEZ R&R Wilton 11 EfW"}]
[]
["Summary of Plant Improvements"]
[]
["Summary of any efficiency improvements that have been completed within the year."]
["The improvements made in 2021, specifically installed SPGs and Steam Cycle Improvements have continued to yield positive results.\n\nImprovements have been made to the Boiler Design to remove failure modes from the Boiler. New materials have been installed that are more hard wearing which will reduce tube wear and improve the longevity. \n\nClass 5 Isolation valves have been installed in the HP steam lines which gaurentee a lower leakage rate therefore improve efficency of the boiler steam output. \n\nConsiderable work to improve the efficency of the FGT + Bag Filter carried out by minimising air ingress to flue gas path. This is having a postive effect on ragent usage."]
[]
[]
[]
[]
[]
[]
[]
[]
[]
["Summary of any permit improvement conditions that have been completed within the year and the resulting environmental benefits."]
["None, completed in previous years. "]
[]
[]
[]
[]
[]
[]
[]
[]
[]
["Summary of any changes to the plant or operating techniques which required a variation to the permit and a summary of the resulting environmental impact."]
["None. "]
[]
[]
[]
[]
[]
[]
[]
[]
[]
["Summary of any other improvements made to the plant or planned to be made and a summary of the resulting environmental benefits."]
["Improvement as detailed above to the FGT is reduced reagent consumption."]

{"sheet":"Public Liasion","index":9,"n_rows":32,"n_cols":5,"rows_kept":32,"cut":false,"hidden":false,"merged":[[6,0,7,1],[6,2,7,9],[18,0,18,9],[5,0,5,1],[5,2,5,9],[16,0,17,1],[16,2,17,9],[10,0,11,1],[10,2,11,9],[14,0,15,1],[14,2,15,9],[12,0,13,1],[12,2,13,9],[8,0,9,1],[8,2,9,9],[19,0,19,1],[19,2,19,9],[28,0,29,1],[28,2,29,9],[31,0,31,9],[20,0,21,1],[20,2,21,9],[22,0,23,1],[22,2,23,9],[24,0,25,1],[24,2,25,9],[26,0,27,1],[26,2,27,9]]}
[{"$f":"+'Cover Page'!$B$29","v":"Annual Performance Report 2022"},null,null,null,{"$f":"+'Cover Page'!$B$33","v":"SUEZ R&R Wilton 11 EfW"}]
[]
["Details of Public & Stakeholder Liasion"]
[]
["Summary of events held during the reporting year."]
["Date",null,"Description"]
["2022-04-22",null,"EA visit to complete R1 validation"]
[]
["2022-06-09",null,"Groups visit of 22 by the Dept. National Trade"]
[]
["2022-06-09",null,"1 visitor from Weighpoint"]
[]
["2022-11-18",null,"3 visitors to conduct audit with Mott McDonald"]
[]
[]
[]
[]
[]
["List of events planned for next year"]
["Date",null,"Description"]
[]
[]
[]
[]
[]
[]
[]
[]
[]
[]
[]
["If you wish to be involved in the public liasion programme, please contact _________________"]

{"sheet":"CO2 N20","index":10,"n_rows":22,"n_cols":5,"rows_kept":22,"cut":false,"hidden":false,"merged":[[22,0,23,2],[4,0,4,2],[8,1,8,2],[8,4,8,14],[10,0,10,2],[12,1,12,2],[12,4,12,14],[15,0,15,2],[17,1,17,2],[17,4,17,14],[19,1,19,2],[19,4,19,14]]}
[{"$f":"+'Cover Page'!$B$29","v":"Annual Performance Report 2022"},null,{"$f":"+'[1]Cover Page'!$B$33","v":"Name of Facility as per Permit"}]
[]
["Carbon dioxide emissions and biogenic content of waste inputs",null,null,null,"Notes:"]
[]
["Carbon dioxide emissions (all types of plant)"]
["Annual mass of carbon dioxide released","357812.1737 tonnes "]
["Annual mass of carbon dioxide released per tonne of waste burned","1.00 tonnes"]
["Annual mass of carbon dioxide released per MWh of energy exported","3.14 tonnes "]
["Description of how annual carbon dioxide mass emission has been calculated","Calculated from reported CO2 volume fraction on the CEMS and the stack flowrate readings on an adjusted basis for each line",null,null,"Note 1: Where available, data from CO2 CEMS should be used. Otherwise, where no CEMS data is available, a suitable emissions factor should be used based on the tonnage of waste burned e.g.0.992 tCO2/t waste as per Tolvik report 2021, or other justified emissions factor  - refer to embedded Environment Agency guidance note above or updated version for suitable descriptive text."]
[]
["Nitrous oxide emissions (only plants which use ammonia or urea to abate NOx emissions)"]
["Annual mass emissions of nitrous oxide","0.5 tonnes "]
["Description of how annual nitrous oxide mass emission has been calculated","Calculated from reported N2O mass concentration on the CEMS and the stack flowrate readings on an adjusted basis for each line",null,null,"Note 2: Where available, data from N2O CEMS should be used, or if no CEMS data is available, from periodic monitoring. Otherwise, a suitable emissions factor should be used based on the tonnage of waste burned e.g. 0.0981 kgN20/t waste as per 2021 Pollution Inventory data for plants with urea-based SNCR - refer to embedded Environment Agency guidance note above or updated version for suitable descriptive text."]
["Total annual carbon dioxide and nitrous oxide emissions as carbon dioxide equivalent (whereby 1 t nitrous oxide is equivalent to 298 t carbon dioxide)","357,961 tonnes CO2e"]
[]
["Biogenic fraction of the waste and biogenic CO2 emissions (only plants burning residual municipal waste, refuse derived fuel or solid recovered fuel)"]
["Yearly average biogenic percentage of the waste by net calorific value (NCV)",0.5]
["Description of how biogenic NCV percentage has been calculated or estimated","From CO2 boigenic analyser on site",null,null,"Note 3: Where available, data from waste sampling should be used; otherwise, an estimated figure with justification can be used, or a figure assumed on the basis of a national average e.g. 2017 WRAP data for residual waste of 51.8% biogenic energy content - refer to embedded Environment Agency guidance note above or updated version for suitable descriptive text, quoting standards where relevant. "]
["Percentage of total carbon dioxide emissions arising from biogenic waste",0.5]
["Description of how percentage biogenic carbon dioxide emissions have been calculated","From CO2 boigenic analyser on site",null,null,"Note 4: Examples include direct measurement via C14 method or BIOMA software - refer to embedded Environment Agency guidance note above or updated version for suitable descriptive text, quoting standards where relevant. Otherwise, as an approximation (and in lieu of any more accurate metrics which may be developed in future), the measured or estimated biogenic fraction by net calorific value can be assumed to be the same as the biogenic CO2 fraction of the total CO2 emissions from the plant. "]
[]
["Comments:"]

{"sheet":"Residue Quality ","index":11,"n_rows":35,"n_cols":6,"rows_kept":35,"cut":false,"hidden":false,"merged":[[16,0,17,1],[16,2,17,6],[18,0,19,1],[18,2,19,6],[12,0,12,6],[13,0,13,1],[13,2,13,6],[5,0,6,6],[7,0,8,6],[9,0,10,6],[14,0,15,1],[14,2,15,6],[20,0,21,1],[20,2,21,6],[22,0,23,1],[22,2,23,6],[31,3,31,4],[27,2,28,2],[28,3,28,4],[28,5,28,6],[27,3,27,6],[26,0,26,6],[35,0,40,6],[32,3,32,4],[34,0,34,6],[27,0,28,1],[29,0,29,1],[30,0,30,1],[31,0,31,1],[32,0,32,1],[29,3,29,4],[30,3,30,4],[29,5,29,6],[30,5,30,6],[31,5,31,6],[32,5,32,6]]}
[{"$f":"+'Cover Page'!$B$29","v":"Annual Performance Report 2022"},null,null,null,{"$f":"+'Cover Page'!$B$33","v":"SUEZ R&R Wilton 11 EfW"}]
[]
["Residue Quality Monitoring Requirements"]
[]
["Summary of monitoring undertaken and compliance"]
["Quarterly IBA & APCR samples taken on Lines 1&2"]
[]
["Fortnightly hazard assessment carried out on Lines 1&2"]
[]
[]
[]
[]
["Commentary on any specific events"]
["Date & Event",null,"Description"]
[]
[]
[]
[]
[]
[]
[]
[]
[]
[]
[]
[]
["Residue Quality Monitoring Results"]
["Parameter (unit) ",null,"Limit","Normal Operation "]
[null,null,null,"Bottom ash  ",null,"APC Residues"]
["Loss on Ignition (%)",null,"<5%","-"]
["ToC (%)",null,"<3%",8.8999999999999999E-3]
["No. of Assessments Undertaken",null,"---","1 samples per quarter"]
["No. of Hazardous Assessments",null,"---","Fortnightly hazard assessment, unless plant outage"]
[]
["Comments :"]

{"sheet":"Water","index":12,"n_rows":23,"n_cols":10,"rows_kept":23,"cut":false,"hidden":false,"merged":[[5,0,6,9],[7,0,8,9],[9,0,10,9],[12,0,12,9],[13,0,13,1],[13,2,13,9],[21,0,21,9],[22,0,22,2],[22,3,22,5],[14,0,15,1],[14,2,15,9],[16,0,17,1],[16,2,17,9],[18,0,19,1],[18,2,19,9],[23,0,23,2],[23,3,23,5],[24,0,24,2],[24,3,24,5],[25,0,25,2],[25,3,25,5],[29,0,29,2],[29,3,29,5],[26,0,26,2],[26,3,26,5],[27,0,27,2],[27,3,27,5],[28,0,28,2],[28,3,28,5]]}
[{"$f":"+'Cover Page'!$B$29","v":"Annual Performance Report 2022"},null,null,null,{"$f":"+'Cover Page'!$B$33","v":"SUEZ R&R Wilton 11 EfW"}]
[]
["Emissions to Water"]
[]
["Summary of monitoring undertaken and compliance"]
["None carried out "]
[]
[]
[]
[]
[]
[]
["Commentary on any specific events"]
["Date & Event",null,"Description"]
[]
[]
[]
[]
[]
[]
[]
["Emissions to Water / Sewer"]
["Parameter",null,null,"Monitoring Frequency",null,null,"Limit","Target","Max.","Average"]

{"sheet":"Air (periodic)","index":13,"n_rows":39,"n_cols":13,"rows_kept":39,"cut":false,"hidden":false,"merged":[[5,12,8,15],[9,12,11,15],[8,0,8,9],[5,0,6,9],[11,0,11,1],[12,0,12,1],[11,3,11,4],[12,3,12,4],[9,0,10,1],[9,5,9,9],[9,3,10,4],[9,2,10,2],[16,0,16,1],[17,0,17,1],[18,0,18,1],[13,0,13,1],[14,0,14,1],[15,0,15,1],[39,0,40,9],[25,0,25,1],[26,0,26,1],[22,0,22,1],[23,0,23,1],[37,0,37,1],[27,0,27,1],[28,0,28,1],[29,0,29,1],[30,0,30,1],[31,0,31,1],[32,0,32,1],[37,3,37,4],[29,3,29,4],[30,3,30,4],[36,3,36,4],[38,0,38,9],[19,0,19,1],[20,0,20,1],[21,0,21,1],[34,3,34,4],[35,3,35,4],[33,0,33,1],[34,0,34,1],[35,0,35,1],[36,0,36,1],[24,0,24,1],[32,3,32,4],[13,3,13,4],[14,3,14,4],[15,3,15,4],[16,3,16,4],[17,3,17,4],[18,3,18,4],[27,3,27,4],[33,3,33,4],[19,3,19,4],[20,3,20,4],[21,3,21,4],[22,3,22,4],[23,3,23,4],[24,3,24,4],[31,3,31,4],[25,3,25,4],[26,3,26,4],[28,3,28,4]]}
[{"$f":"+'Cover Page'!$B$29","v":"Annual Performance Report 2022"},null,null,null,{"$f":"+'Cover Page'!$B$33","v":"SUEZ R&R Wilton 11 EfW"}]
[]
["Emissions to Air (periodically monitored)"]
[]
["Summary of monitoring undertaken, standards used and compliance",null,null,null,null,null,null,null,null,null,null,null,"Notes:"]
["Monitoring completed biannually.",null,null,null,null,null,null,null,null,null,null,null,"Template may require adjustment for any bespoke monitoring requirements of permit. "]
[]
[]
["Results of emissions to air that are periodically monitored"]
["Substance",null,"Ref. Period","Emission Limit Value",null,"Average",null,null,null,null,null,null,"User to add additional tables as necessary, depending on whether quarterly or bi-annual reporting is required for the compliance year"]
[null,null,null,null,null,"A1","A2","A3","A4","A5"]
["Hydrogen fluoride",null,"1 hr","2 mg/m3",null,2.9000000000000001E-2,2.8500000000000001E-3]
["Cd and Th and their compounds",null,"6-8hrs","0.05 mg/m3",null,4.57E-4,8.4000000000000003E-4]
["Hg and its compounds",null,"6-8hrs","0.05 mg/m3",null,3.3E-3,9.7999999999999997E-4]
["Sb, As, Pb, Cr, Co, Cu, Mn, Ni, V and their compounds",null,"6-8hrs","0.5 mg/m3",null,1.3299999999999999E-2,1.9199999999999998E-2]
["Dioxins & Furans (I-TEQ)",null,"6-8hrs","0.1 ng/m3",null,1.7600000000000001E-2,5.8500000000000002E-3]
["PCBs (WHO-TEQ Humans / Mammals)",null,"6-8hrs","None set ng/m3",null,2.3E-3,5.1999999999999995E-4]
["PCBs (WHO-TEQ Fish)",null,"6-8hrs","None set ng/m3",null,2.5000000000000001E-4,3.4E-5]
["PCBs (WHO-TEQ Birds)",null,"6-8hrs","None set ng/m3",null,1.5049999999999999E-2,5.8999999999999999E-3]
["Dioxins & Furans (WHO-TEQ Humans / Mammals)",null,"6-8hrs","None set ng/m3",null,1.865E-2,5.8500000000000002E-3]
["Dioxins & Furans (WHO-TEQ Fish)",null,"6-8hrs","None set ng/m3",null,1.9400000000000001E-2,6.0000000000000001E-3]
["Dioxins & Furans (WHO-TEQ Birds)",null,"6-8hrs","None set ng/m3",null,3.4000000000000002E-2,9.1500000000000001E-3]
["Anthanthrene",null,"6-8hrs","None set µg/m3",null,1.4E-3,1.4E-3]
["Benzo(a)anthracene",null,"6-8hrs","None set µg/m3",null,3.3500000000000001E-3,1.4E-3]
["Benzo(a)pyrene",null,"6-8hrs","None set µg/m3",null,1.6000000000000001E-3,1.4E-3]
["Benzo(b)fluoranthene",null,"6-8hrs","None set µg/m3",null,2.5500000000000002E-3,1.4E-3]
["Benzo(b)naptho(2,1-d) thiophene",null,"6-8hrs","None set µg/m3",null,1.4E-3,1.4E-3]
["Benzo(c)phenanthrene",null,"6-8hrs","None set µg/m3",null,1.5499999999999999E-3,1.4E-3]
["Benzo(ghi)perylene",null,"6-8hrs","None set µg/m3",null,2.2499999999999998E-3,1.4E-3]
["Benzo(k)fluoranthene",null,"6-8hrs","None set µg/m3",null,1.5E-3,1.4E-3]
["Cholanthrene",null,"6-8hrs","None set µg/m3",null,1.4E-3,1.4E-3]
["Chrysene",null,"6-8hrs","None set µg/m3",null,4.4999999999999997E-3,1.75E-3]
["Cyclopenta(cd)pyrene",null,"6-8hrs","None set µg/m3",null,1.9E-3,1.4E-3]
["Dibenzo(ai)pyrene",null,"6-8hrs","None set µg/m3",null,1.4E-3,1.4E-3]
["Dibenzo(ah)anthracene",null,"6-8hrs","None set µg/m3",null,1.4E-3,1.4E-3]
["Fluoranthene",null,"6-8hrs","None set µg/m3",null,1.8350000000000002E-2,9.9500000000000005E-3]
["Indeno(123-cd) pyrene",null,"6-8hrs","None set µg/m3",null,2.5000000000000001E-3,1.4E-3]
["Naphthalene",null,"6-8hrs","None set µg/m3",null,0.125,8.6499999999999994E-2]
["Comments :"]

{"sheet":"Air (CEMS)","index":14,"n_rows":29,"n_cols":16,"rows_kept":29,"cut":false,"hidden":false,"merged":[[27,0,27,12],[29,0,30,12],[13,0,14,0],[5,0,6,12],[7,0,8,12],[10,0,10,12],[11,0,12,0],[11,2,12,2],[11,1,12,1],[11,3,11,4],[11,5,11,6],[11,7,11,8],[11,9,11,10],[11,11,11,12]]}
[{"$f":"+'Cover Page'!$B$29","v":"Annual Performance Report 2022"},null,null,null,null,null,null,null,{"$f":"+'Cover Page'!$B$33","v":"SUEZ R&R Wilton 11 EfW"}]
[]
["Emissions to Air (continously monitored)"]
[null,null,null,null,null,null,null,null,null,null,null,null,null,null,null,"Notes:"]
["Summary of monitoring undertaken, standards used and compliance",null,null,null,null,null,null,null,null,null,null,null,null,null,null,"Template may require adjustment for any bespoke monitoring requirements of permit"]
[]
[]
[]
[]
[]
["Results of emissions to air that are continuously monitored"]
["Substance","Reference Period","Emission Limit Value","A1",null,"A2",null,"A3",null,"A4",null,"A5"]
[null,null,null,"Max.","Avg.","Max.","Avg.","Max.","Avg.","Max.","Avg.","Max.","Avg."]
["Oxides of nitrogen","Daily mean","200 mg/m3 ",{"$f":"NOx!$O$19","v":194},{"$f":"NOx!$N$19","v":165.7},{"$f":"NOx!$O$34","v":191},{"$f":"NOx!$N$34","v":171.72727272727272}]
[null,"½ hourly mean","400 mg/m3 ",{"$f":"NOx!$M$19","v":395},{"$f":"NOx!$L$19","v":165.7},{"$f":"NOx!$M$34","v":323},{"$f":"NOx!$L$34","v":171.72727272727272}]
["Particulates","Daily mean","10 mg/m3",{"$f":"Particulates!$O$19","v":1.7},{"$f":"Particulates!$N$19","v":0.55999999999999994},{"$f":"Particulates!$O$34","v":0.5},{"$f":"Particulates!$N$34","v":0.39999999999999997}]
[null,"½ hourly mean","30 mg/m3 ",{"$f":"Particulates!$M$19","v":6.2},{"$f":"Particulates!$L$19","v":0.55999999999999994},{"$f":"Particulates!$M$34","v":4.0999999999999996},{"$f":"Particulates!$L$34","v":0.39999999999999997}]
["Total Organic Carbon ","Daily mean","10 mg/m3 ",{"$f":"TOC!$O$19","v":1},{"$f":"TOC!$N$19","v":0.54999999999999993},{"$f":"TOC!$O$34","v":3.9},{"$f":"TOC!$N$34","v":0.5}]
[null,"½ hourly mean","20 mg/m3 ",{"$f":"TOC!$M$19","v":6.7},{"$f":"TOC!$L$19","v":0.54999999999999993},{"$f":"TOC!$M$34","v":97},{"$f":"TOC!$L$34","v":0.5}]
["Hydrogen chloride ","Daily mean","10 mg/m3 ",{"$f":"HCl!$O$19","v":8},{"$f":"HCl!$N$19","v":5.0999999999999996},{"$f":"HCl!$O$34","v":9},{"$f":"HCl!$N$34","v":6.2727272727272725}]
[null,"½ hourly mean","60 mg/m3 ",{"$f":"HCl!$M$19","v":27},{"$f":"HCl!$L$19","v":5.0999999999999996},{"$f":"HCl!$M$34","v":36},{"$f":"HCl!$L$34","v":6.2727272727272725}]
["Sulphur dioxide","Daily mean","50 mg/m3 ",{"$f":"'SO2'!$O$19","v":44},{"$f":"'SO2'!$N$19","v":26.4},{"$f":"'SO2'!$O$34","v":43},{"$f":"'SO2'!$N$34","v":27.181818181818183}]
[null,"½ hourly mean","200 mg/m3 ",{"$f":"'SO2'!$M$19","v":159},{"$f":"'SO2'!$L$19","v":26.4},{"$f":"'SO2'!$M$34","v":155},{"$f":"'SO2'!$L$34","v":27.181818181818183}]
["Carbon monoxide ","Daily mean","50 mg/m3 ",{"$f":"'CO 95% 10 min'!Q19","v":18},{"$f":"'CO 95% 10 min'!P19","v":8.9},{"$f":"'CO 95% 10 min'!Q34","v":42},{"$f":"'CO 95% 10 min'!P34","v":5.8181818181818183}]
[null,"½ hourly mean *","100 mg/m3 *"]
[null,"95%ile 10-min avg *","150 mg/m3 *",{"$f":"'CO 95% 10 min'!M19","v":12},null,{"$f":"'CO 95% 10 min'!M34","v":7.2727272727272725}]
[" Ammonia","Daily mean","No limit set",{"$f":"'NH3'!$O$19","v":5},{"$f":"'NH3'!$N$19","v":0.3},{"$f":"'NH3'!$O$34","v":2},{"$f":"'NH3'!$N$34","v":0.36363636363636365}]
["* = delete or amend as appropriate"]
["Comments :"]

{"sheet":"HCl","index":15,"n_rows":79,"n_cols":17,"rows_kept":79,"cut":false,"hidden":false,"merged":[[12,16,15,18],[51,9,63,9],[66,9,78,9],[4,9,4,14],[4,1,4,3],[4,4,4,6],[48,0,51,6],[47,0,47,6],[6,9,18,9],[21,9,33,9],[36,9,48,9],[3,16,7,18],[9,16,11,18]]}
[{"$f":"+'Cover Page'!$B$29","v":"Annual Performance Report 2022"},null,null,null,{"$f":"+'Cover Page'!$B$33","v":"SUEZ R&R Wilton 11 EfW"}]
[]
["Monitoring of Hydrogen Chloride emissions",null,null,"Whole Installation",null,null,"See  Notes in Cell Q3",null,null,{"$f":"+A3","v":"Monitoring of Hydrogen Chloride emissions"},null,null,null,"Per Combustion Line",null,null,"Notes:"]
[null,null,null,null,null,null,null,null,null,null,null,null,null,null,null,null,"User to add logic to complete Whole installation, Table A5:G18. From the data in Per Combustion Line, Table J6:O79, subject to No. of lines installed"]
["mg/Nm3","1/2 Hourly Reference Periods",null,null,"Daily Reference Periods"]
[{"$f":"+'Cover Page'!C39","v":2022},"1/2 hourly HCl ELV","Monthly 1/2 hourly mean","Highest 1/2 hourly maximum","Daily HCl ELV","Monthly daily mean","Highest daily maximum",null,null,{"$f":"+A6","v":2022},"mg/Nm3","Monthly 1/2 hourly mean","Monthly 1/2 hourly maximum","Monthly daily mean","Monthly daily maximum"]
["Jan",60,{"$f":"AVERAGE(L7,L22)","v":4.5},{"$f":"MAX(M7,M22)","v":28},10,{"$f":"AVERAGE(N7,N22)","v":4.5},{"$f":"MAX(O7,O22)","v":8},null,null,"A1","Jan",4,14,4,8]
["Feb",60,{"$f":"AVERAGE(L8,L23)","v":7},{"$f":"MAX(M8,M23)","v":36},10,{"$f":"AVERAGE(N8,N23)","v":7},{"$f":"MAX(O8,O23)","v":8},null,null,null,"Feb",7,11,7,8]
["Mar",60,7.5,27,10,7.5,9,null,null,null,"Mar",8,27,8,8,null,"Whole Installation table A5:G18:"]
["Apr",60,6.5,13,10,6.5,9,null,null,null,"Apr",5,11,5,8,null,"Mean: for 1/2 hourly and daily periods calculate mean of values across all operational combustion lines for the month"]
["May",60,6.5,11,10,6.5,9,null,null,null,"May",6,11,6,8]
["Jun",60,5.5,10,10,5.5,8,null,null,null,"Jun",5,9,5,7]
["Jul",60,6.5,12,10,6.5,9,null,null,null,"Jul",6,10,6,8,null,"Maximum: for 1/2 hourly and daily periods use the highest value across all operational combustion lines for the month"]
["Aug",60,6.5,16,10,6.5,9,null,null,null,"Aug",5,9,5,8]
["Sep",60,5,12,10,5,9,null,null,null,"Sep"]
["Oct",60,7,12,10,7,9,null,null,null,"Oct"]
["Nov",60,2,5,10,2,3,null,null,null,"Nov",2,5,2,3]
["Dec",60,2.5,17,10,2.5,5,null,null,null,"Dec",3,17,3,5]
[null,null,null,null,null,null,null,null,null,null,"Annual",{"$f":"AVERAGE(L7:L18)","v":5.0999999999999996},{"$f":"MAX(M7:M18)","v":27},{"$f":"AVERAGE(N7:N18)","v":5.0999999999999996},{"$f":"MAX(O7:O18)","v":8}]
[]
[null,null,null,null,null,null,null,null,null,{"$f":"+A6","v":2022},"mg/Nm3","Monthly 1/2 hourly mean","Monthly 1/2 hourly maximum","Monthly daily mean","Monthly daily maximum"]
[null,null,null,null,null,null,null,null,null,"A2","Jan",5,28,5,8]
[null,null,null,null,null,null,null,null,null,null,"Feb",7,36,7,8]
[null,null,null,null,null,null,null,null,null,null,"Mar",7,14,7,9]
[null,null,null,null,null,null,null,null,null,null,"Apr",8,13,8,9]
[null,null,null,null,null,null,null,null,null,null,"May",7,11,7,9]
[null,null,null,null,null,null,null,null,null,null,"Jun",6,10,6,8]
[null,null,null,null,null,null,null,null,null,null,"Jul",7,12,7,9]
[null,null,null,null,null,null,null,null,null,null,"Aug",8,16,8,9]
[null,null,null,null,null,null,null,null,null,null,"Sep",5,12,5,9]
[null,null,null,null,null,null,null,null,null,null,"Oct",7,12,7,9]
[null,null,null,null,null,null,null,null,null,null,"Nov"]
[null,null,null,null,null,null,null,null,null,null,"Dec",2,5,2,5]
[null,null,null,null,null,null,null,null,null,null,"Annual",{"$f":"AVERAGE(L22:L33)","v":6.2727272727272725},{"$f":"MAX(M22:M33)","v":36},{"$f":"AVERAGE(N22:N33)","v":6.2727272727272725},{"$f":"MAX(O22:O33)","v":9}]
[]
[null,null,null,null,null,null,null,null,null,{"$f":"+A6","v":2022},"mg/Nm3","Monthly 1/2 hourly mean","Monthly 1/2 hourly maximum","Monthly daily mean","Monthly daily maximum"]
[null,null,null,null,null,null,null,null,null,"A3","Jan"]
[null,null,null,null,null,null,null,null,null,null,"Feb"]
[null,null,null,null,null,null,null,null,null,null,"Mar"]
[null,null,null,null,null,null,null,null,null,null,"Apr"]
[null,null,null,null,null,null,null,null,null,null,"May"]
[null,null,null,null,null,null,null,null,null,null,"Jun"]
[null,null,null,null,null,null,null,null,null,null,"Jul"]
[null,null,null,null,null,null,null,null,null,null,"Aug"]
[null,null,null,null,null,null,null,null,null,null,"Sep"]
[null,null,null,null,null,null,null,null,null,null,"Oct"]
[null,null,null,null,null,null,null,null,null,null,"Nov"]
["Comments :",null,null,null,null,null,null,null,null,null,"Dec"]
[null,null,null,null,null,null,null,null,null,null,"Annual",{"$f":"AVERAGE(L37:L48)","v":{"$error":"#DIV/0!"}},{"$f":"MAX(M37:M48)","v":0},{"$f":"AVERAGE(N37:N48)","v":{"$error":"#DIV/0!"}},{"$f":"MAX(O37:O48)","v":0}]
[]
[null,null,null,null,null,null,null,null,null,{"$f":"+A6","v":2022},"mg/Nm3","Monthly 1/2 hourly mean","Monthly 1/2 hourly maximum","Monthly daily mean","Monthly daily maximum"]
[null,null,null,null,null,null,null,null,null,"A4","Jan"]
[null,null,null,null,null,null,null,null,null,null,"Feb"]
[null,null,null,null,null,null,null,null,null,null,"Mar"]
[null,null,null,null,null,null,null,null,null,null,"Apr"]
[null,null,null,null,null,null,null,null,null,null,"May"]
[null,null,null,null,null,null,null,null,null,null,"Jun"]
[null,null,null,null,null,null,null,null,null,null,"Jul"]
[null,null,null,null,null,null,null,null,null,null,"Aug"]
[null,null,null,null,null,null,null,null,null,null,"Sep"]
[null,null,null,null,null,null,null,null,null,null,"Oct"]
[null,null,null,null,null,null,null,null,null,null,"Nov"]
[null,null,null,null,null,null,null,null,null,null,"Dec"]
[null,null,null,null,null,null,null,null,null,null,"Annual",{"$f":"AVERAGE(L52:L63)","v":{"$error":"#DIV/0!"}},{"$f":"MAX(M52:M63)","v":0},{"$f":"AVERAGE(N52:N63)","v":{"$error":"#DIV/0!"}},{"$f":"MAX(O52:O63)","v":0}]
[]
[null,null,null,null,null,null,null,null,null,{"$f":"+A6","v":2022},"mg/Nm3","Monthly 1/2 hourly mean","Monthly 1/2 hourly maximum","Monthly daily mean","Monthly daily maximum"]
[null,null,null,null,null,null,null,null,null,"A5","Jan"]
[null,null,null,null,null,null,null,null,null,null,"Feb"]
[null,null,null,null,null,null,null,null,null,null,"Mar"]
[null,null,null,null,null,null,null,null,null,null,"Apr"]
[null,null,null,null,null,null,null,null,null,null,"May"]
[null,null,null,null,null,null,null,null,null,null,"Jun"]
[null,null,null,null,null,null,null,null,null,null,"Jul"]
[null,null,null,null,null,null,null,null,null,null,"Aug"]
[null,null,null,null,null,null,null,null,null,null,"Sep"]
[null,null,null,null,null,null,null,null,null,null,"Oct"]
[null,null,null,null,null,null,null,null,null,null,"Nov"]
[null,null,null,null,null,null,null,null,null,null,"Dec"]
[null,null,null,null,null,null,null,null,null,null,"Annual",{"$f":"AVERAGE(L67:L78)","v":{"$error":"#DIV/0!"}},{"$f":"MAX(M67:M78)","v":0},{"$f":"AVERAGE(N67:N78)","v":{"$error":"#DIV/0!"}},{"$f":"MAX(O67:O78)","v":0}]

{"sheet":"SO2","index":16,"n_rows":79,"n_cols":17,"rows_kept":79,"cut":false,"hidden":false,"merged":[[3,16,7,18],[9,16,11,18],[12,16,15,18],[66,9,78,9],[4,1,4,3],[4,4,4,6],[4,9,4,14],[6,9,18,9],[21,9,33,9],[36,9,48,9],[47,0,47,6],[48,0,51,6],[51,9,63,9]]}
[{"$f":"+'Cover Page'!$B$29","v":"Annual Performance Report 2022"},null,null,null,{"$f":"+'Cover Page'!$B$33","v":"SUEZ R&R Wilton 11 EfW"}]
[]
["Monitoring of Sulphur dioxide emissions",null,null,"Whole Installation",null,null,"See  Notes in Cell Q3",null,null,{"$f":"+A3","v":"Monitoring of Sulphur dioxide emissions"},null,null,null,"Per Combustion Line",null,null,"Notes:"]
[null,null,null,null,null,null,null,null,null,null,null,null,null,null,null,null,"User to add logic to complete Whole installation, Table A5:G18. From the data in Per Combustion Line, Table J6:O79, subject to No. of lines installed"]
["mg/Nm3","1/2 Hourly Reference Periods",null,null,"Daily Reference Periods"]
[{"$f":"+'Cover Page'!C39","v":2022},"1/2 hourly SO2 ELV","Monthly 1/2 hourly mean","Highest 1/2 hourly maximum","Daily SO2 ELV","Monthly daily mean","Highest daily maximum",null,null,{"$f":"+A6","v":2022},"mg/Nm3","Monthly 1/2 hourly mean","Monthly 1/2 hourly maximum","Monthly daily mean","Monthly daily maximum"]
["Jan",200,{"$f":"AVERAGE(L7,L22)","v":23.5},{"$f":"MAX(M7,M22)","v":70},50,{"$f":"AVERAGE(N7,N22)","v":23.5},{"$f":"MAX(O7,O22)","v":34},null,null,"A1","Jan",21,70,21,34]
["Feb",200,{"$f":"AVERAGE(L8,L23)","v":29},{"$f":"MAX(M8,M23)","v":155},50,{"$f":"AVERAGE(N8,N23)","v":29},{"$f":"MAX(O8,O23)","v":34},null,null,null,"Feb",27,48,27,33]
["Mar",200,27,142,50,27,39,null,null,null,"Mar",25,55,25,35,null,"Whole Installation table A5:G18:"]
["Apr",200,23.5,52,50,23.5,33,null,null,null,"Apr",19,52,19,27,null,"Mean: for 1/2 hourly and daily periods calculate mean of values across all operational combustion lines for the month"]
["May",200,29,60,50,29,43,null,null,null,"May",26,60,26,40]
["Jun",200,27.5,86,50,27.5,44,null,null,null,"Jun",27,71,27,44]
["Jul",200,27,85,50,27,39,null,null,null,"Jul",27,60,27,39,null,"Maximum: for 1/2 hourly and daily periods use the highest value across all operational combustion lines for the month"]
["Aug",200,26,159,50,26,37,null,null,null,"Aug",25,159,25,37]
["Sep",200,20,46,50,20,29,null,null,null,"Sep"]
["Oct",200,22,62,50,22,35,null,null,null,"Oct"]
["Nov",200,32,84,50,32,43,null,null,null,"Nov",32,84,32,43]
["Dec",200,32,59,50,32,42,null,null,null,"Dec",35,55,35,42]
[null,null,null,null,null,null,null,null,null,null,"Annual",{"$f":"AVERAGE(L7:L18)","v":26.4},{"$f":"MAX(M7:M18)","v":159},{"$f":"AVERAGE(N7:N18)","v":26.4},{"$f":"MAX(O7:O18)","v":44}]
[]
[null,null,null,null,null,null,null,null,null,{"$f":"+A6","v":2022},"mg/Nm3","Monthly 1/2 hourly mean","Monthly 1/2 hourly maximum","Monthly daily mean","Monthly daily maximum"]
[null,null,null,null,null,null,null,null,null,"A2","Jan",26,56,26,33]
[null,null,null,null,null,null,null,null,null,null,"Feb",31,155,31,34]
[null,null,null,null,null,null,null,null,null,null,"Mar",29,142,29,39]
[null,null,null,null,null,null,null,null,null,null,"Apr",28,46,28,33]
[null,null,null,null,null,null,null,null,null,null,"May",32,58,32,43]
[null,null,null,null,null,null,null,null,null,null,"Jun",28,86,28,40]
[null,null,null,null,null,null,null,null,null,null,"Jul",27,85,27,34]
[null,null,null,null,null,null,null,null,null,null,"Aug",27,89,27,36]
[null,null,null,null,null,null,null,null,null,null,"Sep",20,46,20,29]
[null,null,null,null,null,null,null,null,null,null,"Oct",22,62,22,35]
[null,null,null,null,null,null,null,null,null,null,"Nov"]
[null,null,null,null,null,null,null,null,null,null,"Dec",29,59,29,39]
[null,null,null,null,null,null,null,null,null,null,"Annual",{"$f":"AVERAGE(L22:L33)","v":27.181818181818183},{"$f":"MAX(M22:M33)","v":155},{"$f":"AVERAGE(N22:N33)","v":27.181818181818183},{"$f":"MAX(O22:O33)","v":43}]
[]
[null,null,null,null,null,null,null,null,null,{"$f":"+A6","v":2022},"mg/Nm3","Monthly 1/2 hourly mean","Monthly 1/2 hourly maximum","Monthly daily mean","Monthly daily maximum"]
[null,null,null,null,null,null,null,null,null,"A3","Jan"]
[null,null,null,null,null,null,null,null,null,null,"Feb"]
[null,null,null,null,null,null,null,null,null,null,"Mar"]
[null,null,null,null,null,null,null,null,null,null,"Apr"]
[null,null,null,null,null,null,null,null,null,null,"May"]
[null,null,null,null,null,null,null,null,null,null,"Jun"]
[null,null,null,null,null,null,null,null,null,null,"Jul"]
[null,null,null,null,null,null,null,null,null,null,"Aug"]
[null,null,null,null,null,null,null,null,null,null,"Sep"]
[null,null,null,null,null,null,null,null,null,null,"Oct"]
[null,null,null,null,null,null,null,null,null,null,"Nov"]
["Comments :",null,null,null,null,null,null,null,null,null,"Dec"]
[null,null,null,null,null,null,null,null,null,null,"Annual",{"$f":"AVERAGE(L37:L48)","v":{"$error":"#DIV/0!"}},{"$f":"MAX(M37:M48)","v":0},{"$f":"AVERAGE(N37:N48)","v":{"$error":"#DIV/0!"}},{"$f":"MAX(O37:O48)","v":0}]
[]
[null,null,null,null,null,null,null,null,null,{"$f":"+A6","v":2022},"mg/Nm3","Monthly 1/2 hourly mean","Monthly 1/2 hourly maximum","Monthly daily mean","Monthly daily maximum"]
[null,null,null,null,null,null,null,null,null,"A4","Jan"]
[null,null,null,null,null,null,null,null,null,null,"Feb"]
[null,null,null,null,null,null,null,null,null,null,"Mar"]
[null,null,null,null,null,null,null,null,null,null,"Apr"]
[null,null,null,null,null,null,null,null,null,null,"May"]
[null,null,null,null,null,null,null,null,null,null,"Jun"]
[null,null,null,null,null,null,null,null,null,null,"Jul"]
[null,null,null,null,null,null,null,null,null,null,"Aug"]
[null,null,null,null,null,null,null,null,null,null,"Sep"]
[null,null,null,null,null,null,null,null,null,null,"Oct"]
[null,null,null,null,null,null,null,null,null,null,"Nov"]
[null,null,null,null,null,null,null,null,null,null,"Dec"]
[null,null,null,null,null,null,null,null,null,null,"Annual",{"$f":"AVERAGE(L52:L63)","v":{"$error":"#DIV/0!"}},{"$f":"MAX(M52:M63)","v":0},{"$f":"AVERAGE(N52:N63)","v":{"$error":"#DIV/0!"}},{"$f":"MAX(O52:O63)","v":0}]
[]
[null,null,null,null,null,null,null,null,null,{"$f":"+A6","v":2022},"mg/Nm3","Monthly 1/2 hourly mean","Monthly 1/2 hourly maximum","Monthly daily mean","Monthly daily maximum"]
[null,null,null,null,null,null,null,null,null,"A5","Jan"]
[null,null,null,null,null,null,null,null,null,null,"Feb"]
[null,null,null,null,null,null,null,null,null,null,"Mar"]
[null,null,null,null,null,null,null,null,null,null,"Apr"]
[null,null,null,null,null,null,null,null,null,null,"May"]
[null,null,null,null,null,null,null,null,null,null,"Jun"]
[null,null,null,null,null,null,null,null,null,null,"Jul"]
[null,null,null,null,null,null,null,null,null,null,"Aug"]
[null,null,null,null,null,null,null,null,null,null,"Sep"]
[null,null,null,null,null,null,null,null,null,null,"Oct"]
[null,null,null,null,null,null,null,null,null,null,"Nov"]
[null,null,null,null,null,null,null,null,null,null,"Dec"]
[null,null,null,null,null,null,null,null,null,null,"Annual",{"$f":"AVERAGE(L67:L78)","v":{"$error":"#DIV/0!"}},{"$f":"MAX(M67:M78)","v":0},{"$f":"AVERAGE(N67:N78)","v":{"$error":"#DIV/0!"}},{"$f":"MAX(O67:O78)","v":0}]

{"sheet":"NOx","index":17,"n_rows":79,"n_cols":17,"rows_kept":79,"cut":false,"hidden":false,"merged":[[3,16,7,18],[9,16,11,18],[12,16,15,18],[66,9,78,9],[4,1,4,3],[4,4,4,6],[4,9,4,14],[6,9,18,9],[21,9,33,9],[36,9,48,9],[47,0,47,6],[48,0,51,6],[51,9,63,9]]}
[{"$f":"+'Cover Page'!$B$29","v":"Annual Performance Report 2022"},null,null,null,{"$f":"+'Cover Page'!$B$33","v":"SUEZ R&R Wilton 11 EfW"}]
[]
["Monitoring of Oxides of Nitrogen emissions",null,null,"Whole Installation",null,null,"See  Notes in Cell Q3",null,null,{"$f":"+A3","v":"Monitoring of Oxides of Nitrogen emissions"},null,null,null,"Per Combustion Line",null,null,"Notes:"]
[null,null,null,null,null,null,null,null,null,null,null,null,null,null,null,null,"User to add logic to complete Whole installation, Table A5:G18. From the data in Per Combustion Line, Table J6:O79, subject to No. of lines installed"]
["mg/Nm3","1/2 Hourly Reference Periods",null,null,"Daily Reference Periods"]
[{"$f":"+'Cover Page'!C39","v":2022},"1/2 hourly NOx ELV","Monthly 1/2 hourly mean","Highest 1/2 hourly maximum","Daily NOx ELV","Monthly daily mean","Highest daily maximum",null,null,{"$f":"+A6","v":2022},"mg/Nm3","Monthly 1/2 hourly mean","Monthly 1/2 hourly maximum","Monthly daily mean","Monthly daily maximum"]
["Jan",400,{"$f":"AVERAGE(L7,L22)","v":171},{"$f":"MAX(M7,M22)","v":294},200,{"$f":"AVERAGE(N7,N22)","v":171},{"$f":"MAX(O7,O22)","v":177},null,null,"A1","Jan",168,203,168,170]
["Feb",400,{"$f":"AVERAGE(L8,L23)","v":171},{"$f":"MAX(M8,M23)","v":253},200,{"$f":"AVERAGE(N8,N23)","v":171},{"$f":"MAX(O8,O23)","v":175},null,null,null,"Feb",169,253,169,175]
["Mar",400,171.5,202,200,171.5,176,null,null,null,"Mar",170,200,170,171]
["Apr",400,174,323,200,174,191,null,null,null,"Apr",172,249,172,188,null,"Mean: for 1/2 hourly and daily periods calculate mean of values across all operational combustion lines for the month"]
["May",400,173,274,200,173,189,null,null,null,"May",169,206,169,173]
["Jun",400,169,258,200,169,178,null,null,null,"Jun",164,258,164,172]
["Jul",400,173.5,276,200,173.5,194,null,null,null,"Jul",174,276,174,194,null,"Maximum: for 1/2 hourly and daily periods use the highest value across all operational combustion lines for the month"]
["Aug",400,167.5,239,200,167.5,188,null,null,null,"Aug",162,239,162,188]
["Sep",400,167,265,200,167,174,null,null,null,"Sep"]
["Oct",400,165,204,200,165,166,null,null,null,"Oct"]
["Nov",400,154,192,200,154,158,null,null,null,"Nov",154,192,154,158]
["Dec",400,159.5,395,200,159.5,177,null,null,null,"Dec",155,395,155,177]
[null,null,null,null,null,null,null,null,null,null,"Annual",{"$f":"AVERAGE(L7:L18)","v":165.7},{"$f":"MAX(M7:M18)","v":395},{"$f":"AVERAGE(N7:N18)","v":165.7},{"$f":"MAX(O7:O18)","v":194}]
[]
[null,null,null,null,null,null,null,null,null,{"$f":"+A6","v":2022},"mg/Nm3","Monthly 1/2 hourly mean","Monthly 1/2 hourly maximum","Monthly daily mean","Monthly daily maximum"]
[null,null,null,null,null,null,null,null,null,"A2","Jan",174,294,174,177]
[null,null,null,null,null,null,null,null,null,null,"Feb",173,223,173,175]
[null,null,null,null,null,null,null,null,null,null,"Mar",173,202,173,176]
[null,null,null,null,null,null,null,null,null,null,"Apr",176,323,176,191]
[null,null,null,null,null,null,null,null,null,null,"May",177,274,177,189]
[null,null,null,null,null,null,null,null,null,null,"Jun",174,224,174,178]
[null,null,null,null,null,null,null,null,null,null,"Jul",173,203,173,174]
[null,null,null,null,null,null,null,null,null,null,"Aug",173,230,173,181]
[null,null,null,null,null,null,null,null,null,null,"Sep",167,265,167,174]
[null,null,null,null,null,null,null,null,null,null,"Oct",165,204,165,166]
[null,null,null,null,null,null,null,null,null,null,"Nov"]
[null,null,null,null,null,null,null,null,null,null,"Dec",164,197,164,165]
[null,null,null,null,null,null,null,null,null,null,"Annual",{"$f":"AVERAGE(L22:L33)","v":171.72727272727272},{"$f":"MAX(M22:M33)","v":323},{"$f":"AVERAGE(N22:N33)","v":171.72727272727272},{"$f":"MAX(O22:O33)","v":191}]
[]
[null,null,null,null,null,null,null,null,null,{"$f":"+A6","v":2022},"mg/Nm3","Monthly 1/2 hourly mean","Monthly 1/2 hourly maximum","Monthly daily mean","Monthly daily maximum"]
[null,null,null,null,null,null,null,null,null,"A3","Jan"]
[null,null,null,null,null,null,null,null,null,null,"Feb"]
[null,null,null,null,null,null,null,null,null,null,"Mar"]
[null,null,null,null,null,null,null,null,null,null,"Apr"]
[null,null,null,null,null,null,null,null,null,null,"May"]
[null,null,null,null,null,null,null,null,null,null,"Jun"]
[null,null,null,null,null,null,null,null,null,null,"Jul"]
[null,null,null,null,null,null,null,null,null,null,"Aug"]
[null,null,null,null,null,null,null,null,null,null,"Sep"]
[null,null,null,null,null,null,null,null,null,null,"Oct"]
[null,null,null,null,null,null,null,null,null,null,"Nov"]
["Comments :",null,null,null,null,null,null,null,null,null,"Dec"]
[null,null,null,null,null,null,null,null,null,null,"Annual",{"$f":"AVERAGE(L37:L48)","v":{"$error":"#DIV/0!"}},{"$f":"MAX(M37:M48)","v":0},{"$f":"AVERAGE(N37:N48)","v":{"$error":"#DIV/0!"}},{"$f":"MAX(O37:O48)","v":0}]
[]
[null,null,null,null,null,null,null,null,null,{"$f":"+A6","v":2022},"mg/Nm3","Monthly 1/2 hourly mean","Monthly 1/2 hourly maximum","Monthly daily mean","Monthly daily maximum"]
[null,null,null,null,null,null,null,null,null,"A4","Jan"]
[null,null,null,null,null,null,null,null,null,null,"Feb"]
[null,null,null,null,null,null,null,null,null,null,"Mar"]
[null,null,null,null,null,null,null,null,null,null,"Apr"]
[null,null,null,null,null,null,null,null,null,null,"May"]
[null,null,null,null,null,null,null,null,null,null,"Jun"]
[null,null,null,null,null,null,null,null,null,null,"Jul"]
[null,null,null,null,null,null,null,null,null,null,"Aug"]
[null,null,null,null,null,null,null,null,null,null,"Sep"]
[null,null,null,null,null,null,null,null,null,null,"Oct"]
[null,null,null,null,null,null,null,null,null,null,"Nov"]
[null,null,null,null,null,null,null,null,null,null,"Dec"]
[null,null,null,null,null,null,null,null,null,null,"Annual",{"$f":"AVERAGE(L52:L63)","v":{"$error":"#DIV/0!"}},{"$f":"MAX(M52:M63)","v":0},{"$f":"AVERAGE(N52:N63)","v":{"$error":"#DIV/0!"}},{"$f":"MAX(O52:O63)","v":0}]
[]
[null,null,null,null,null,null,null,null,null,{"$f":"+A6","v":2022},"mg/Nm3","Monthly 1/2 hourly mean","Monthly 1/2 hourly maximum","Monthly daily mean","Monthly daily maximum"]
[null,null,null,null,null,null,null,null,null,"A5","Jan"]
[null,null,null,null,null,null,null,null,null,null,"Feb"]
[null,null,null,null,null,null,null,null,null,null,"Mar"]
[null,null,null,null,null,null,null,null,null,null,"Apr"]
[null,null,null,null,null,null,null,null,null,null,"May"]
[null,null,null,null,null,null,null,null,null,null,"Jun"]
[null,null,null,null,null,null,null,null,null,null,"Jul"]
[null,null,null,null,null,null,null,null,null,null,"Aug"]
[null,null,null,null,null,null,null,null,null,null,"Sep"]
[null,null,null,null,null,null,null,null,null,null,"Oct"]
[null,null,null,null,null,null,null,null,null,null,"Nov"]
[null,null,null,null,null,null,null,null,null,null,"Dec"]
[null,null,null,null,null,null,null,null,null,null,"Annual",{"$f":"AVERAGE(L67:L78)","v":{"$error":"#DIV/0!"}},{"$f":"MAX(M67:M78)","v":0},{"$f":"AVERAGE(N67:N78)","v":{"$error":"#DIV/0!"}},{"$f":"MAX(O67:O78)","v":0}]

{"sheet":"TOC","index":18,"n_rows":79,"n_cols":17,"rows_kept":79,"cut":false,"hidden":false,"merged":[[3,16,7,18],[9,16,11,18],[12,16,15,18],[66,9,78,9],[4,1,4,3],[4,4,4,6],[4,9,4,14],[6,9,18,9],[21,9,33,9],[36,9,48,9],[47,0,47,6],[48,0,51,6],[51,9,63,9]]}
[{"$f":"+'Cover Page'!$B$29","v":"Annual Performance Report 2022"},null,null,null,{"$f":"+'Cover Page'!$B$33","v":"SUEZ R&R Wilton 11 EfW"}]
[]
["Monitoring of Total organic carbon emissions",null,null,"Whole Installation",null,null,"See  Notes in Cell Q3",null,null,{"$f":"+A3","v":"Monitoring of Total organic carbon emissions"},null,null,null,"Per Combustion Line",null,null,"Notes:"]
[null,null,null,null,null,null,null,null,null,null,null,null,null,null,null,null,"User to add logic to complete Whole installation, Table A5:G18. From the data in Per Combustion Line, Table J6:O79, subject to No. of lines installed"]
["mg/Nm3","1/2 Hourly Reference Periods",null,null,"Daily Reference Periods"]
[{"$f":"+'Cover Page'!C39","v":2022},"1/2 hourly TOC ELV","Monthly 1/2 hourly mean","Highest 1/2 hourly maximum","Daily TOC ELV","Monthly daily mean","Highest daily maximum",null,null,{"$f":"+A6","v":2022},"mg/Nm3","Monthly 1/2 hourly mean","Monthly 1/2 hourly maximum","Monthly daily mean","Monthly daily maximum"]
["Jan",20,{"$f":"AVERAGE(L7,L22)","v":0.55000000000000004},{"$f":"MAX(M7,M22)","v":97},10,{"$f":"AVERAGE(N7,N22)","v":0.55000000000000004},{"$f":"MAX(O7,O22)","v":2.5},null,null,"A1","Jan",0.6,2.1,0.6,0.6]
["Feb",20,{"$f":"AVERAGE(L8,L23)","v":0.5},{"$f":"MAX(M8,M23)","v":1.6},10,{"$f":"AVERAGE(N8,N23)","v":0.5},{"$f":"MAX(O8,O23)","v":0.6},null,null,null,"Feb",0.6,1.6,0.6,0.6]
["Mar",20,0.5,1.4,10,0.5,0.6,null,null,null,"Mar",0.6,1.2,0.6,0.6,null,"Whole Installation table A5:G18:"]
["Apr",20,0.5,2.4,10,0.5,0.6,null,null,null,"Apr",0.6,2.4,0.6,0.6,null,"Mean: for 1/2 hourly and daily periods calculate mean of values across all operational combustion lines for the month"]
["May",20,0.55000000000000004,6.7,10,0.55000000000000004,1,null,null,null,"May",0.7,6.7,0.7,1]
["Jun",20,0.55000000000000004,4.5,10,0.55000000000000004,0.7,null,null,null,"Jun",0.6,4.5,0.6,0.7]
["Jul",20,0.75,6.8,10,0.75,3.9,null,null,null,"Jul",0.6,2.1,0.6,0.7,null,"Maximum: for 1/2 hourly and daily periods use the highest value across all operational combustion lines for the month"]
["Aug",20,0.55000000000000004,3.4,10,0.55000000000000004,1,null,null,null,"Aug",0.6,3.4,0.6,0.9]
["Sep",20,0.5,2.2999999999999998,10,0.5,0.5,null,null,null,"Sep"]
["Oct",20,0.5,1.7,10,0.5,0.5,null,null,null,"Oct"]
["Nov",20,0.6,1.3,10,0.6,0.6,null,null,null,"Nov",0.6,1.3,0.6,0.6]
["Dec",20,0.25,1.5,10,0.25,0.8,null,null,null,"Dec",0,1.5,0,0.8]
[null,null,null,null,null,null,null,null,null,null,"Annual",{"$f":"AVERAGE(L7:L18)","v":0.54999999999999993},{"$f":"MAX(M7:M18)","v":6.7},{"$f":"AVERAGE(N7:N18)","v":0.54999999999999993},{"$f":"MAX(O7:O18)","v":1}]
[]
[null,null,null,null,null,null,null,null,null,{"$f":"+A6","v":2022},"mg/Nm3","Monthly 1/2 hourly mean","Monthly 1/2 hourly maximum","Monthly daily mean","Monthly daily maximum"]
[null,null,null,null,null,null,null,null,null,"A2","Jan",0.5,97,0.5,2.5]
[null,null,null,null,null,null,null,null,null,null,"Feb",0.4,1.5,0.4,0.5]
[null,null,null,null,null,null,null,null,null,null,"Mar",0.4,1.4,0.4,0.5]
[null,null,null,null,null,null,null,null,null,null,"Apr",0.4,1.5,0.4,0.5]
[null,null,null,null,null,null,null,null,null,null,"May",0.4,3.5,0.4,0.5]
[null,null,null,null,null,null,null,null,null,null,"Jun",0.5,1.5,0.5,0.7]
[null,null,null,null,null,null,null,null,null,null,"Jul",0.9,6.8,0.9,3.9]
[null,null,null,null,null,null,null,null,null,null,"Aug",0.5,2.8,0.5,1]
[null,null,null,null,null,null,null,null,null,null,"Sep",0.5,2.2999999999999998,0.5,0.5]
[null,null,null,null,null,null,null,null,null,null,"Oct",0.5,1.7,0.5,0.5]
[null,null,null,null,null,null,null,null,null,null,"Nov"]
[null,null,null,null,null,null,null,null,null,null,"Dec",0.5,1.1000000000000001,0.5,0.5]
[null,null,null,null,null,null,null,null,null,null,"Annual",{"$f":"AVERAGE(L22:L33)","v":0.5},{"$f":"MAX(M22:M33)","v":97},{"$f":"AVERAGE(N22:N33)","v":0.5},{"$f":"MAX(O22:O33)","v":3.9}]
[]
[null,null,null,null,null,null,null,null,null,{"$f":"+A6","v":2022},"mg/Nm3","Monthly 1/2 hourly mean","Monthly 1/2 hourly maximum","Monthly daily mean","Monthly daily maximum"]
[null,null,null,null,null,null,null,null,null,"A3","Jan"]
[null,null,null,null,null,null,null,null,null,null,"Feb"]
[null,null,null,null,null,null,null,null,null,null,"Mar"]
[null,null,null,null,null,null,null,null,null,null,"Apr"]
[null,null,null,null,null,null,null,null,null,null,"May"]
[null,null,null,null,null,null,null,null,null,null,"Jun"]
[null,null,null,null,null,null,null,null,null,null,"Jul"]
[null,null,null,null,null,null,null,null,null,null,"Aug"]
[null,null,null,null,null,null,null,null,null,null,"Sep"]
[null,null,null,null,null,null,null,null,null,null,"Oct"]
[null,null,null,null,null,null,null,null,null,null,"Nov"]
["Comments :",null,null,null,null,null,null,null,null,null,"Dec"]
[null,null,null,null,null,null,null,null,null,null,"Annual",{"$f":"AVERAGE(L37:L48)","v":{"$error":"#DIV/0!"}},{"$f":"MAX(M37:M48)","v":0},{"$f":"AVERAGE(N37:N48)","v":{"$error":"#DIV/0!"}},{"$f":"MAX(O37:O48)","v":0}]
[]
[null,null,null,null,null,null,null,null,null,{"$f":"+A6","v":2022},"mg/Nm3","Monthly 1/2 hourly mean","Monthly 1/2 hourly maximum","Monthly daily mean","Monthly daily maximum"]
[null,null,null,null,null,null,null,null,null,"A4","Jan"]
[null,null,null,null,null,null,null,null,null,null,"Feb"]
[null,null,null,null,null,null,null,null,null,null,"Mar"]
[null,null,null,null,null,null,null,null,null,null,"Apr"]
[null,null,null,null,null,null,null,null,null,null,"May"]
[null,null,null,null,null,null,null,null,null,null,"Jun"]
[null,null,null,null,null,null,null,null,null,null,"Jul"]
[null,null,null,null,null,null,null,null,null,null,"Aug"]
[null,null,null,null,null,null,null,null,null,null,"Sep"]
[null,null,null,null,null,null,null,null,null,null,"Oct"]
[null,null,null,null,null,null,null,null,null,null,"Nov"]
[null,null,null,null,null,null,null,null,null,null,"Dec"]
[null,null,null,null,null,null,null,null,null,null,"Annual",{"$f":"AVERAGE(L52:L63)","v":{"$error":"#DIV/0!"}},{"$f":"MAX(M52:M63)","v":0},{"$f":"AVERAGE(N52:N63)","v":{"$error":"#DIV/0!"}},{"$f":"MAX(O52:O63)","v":0}]
[]
[null,null,null,null,null,null,null,null,null,{"$f":"+A6","v":2022},"mg/Nm3","Monthly 1/2 hourly mean","Monthly 1/2 hourly maximum","Monthly daily mean","Monthly daily maximum"]
[null,null,null,null,null,null,null,null,null,"A5","Jan"]
[null,null,null,null,null,null,null,null,null,null,"Feb"]
[null,null,null,null,null,null,null,null,null,null,"Mar"]
[null,null,null,null,null,null,null,null,null,null,"Apr"]
[null,null,null,null,null,null,null,null,null,null,"May"]
[null,null,null,null,null,null,null,null,null,null,"Jun"]
[null,null,null,null,null,null,null,null,null,null,"Jul"]
[null,null,null,null,null,null,null,null,null,null,"Aug"]
[null,null,null,null,null,null,null,null,null,null,"Sep"]
[null,null,null,null,null,null,null,null,null,null,"Oct"]
[null,null,null,null,null,null,null,null,null,null,"Nov"]
[null,null,null,null,null,null,null,null,null,null,"Dec"]
[null,null,null,null,null,null,null,null,null,null,"Annual",{"$f":"AVERAGE(L67:L78)","v":{"$error":"#DIV/0!"}},{"$f":"MAX(M67:M78)","v":0},{"$f":"AVERAGE(N67:N78)","v":{"$error":"#DIV/0!"}},{"$f":"MAX(O67:O78)","v":0}]

{"sheet":"Particulates","index":19,"n_rows":79,"n_cols":17,"rows_kept":79,"cut":false,"hidden":false,"merged":[[3,16,7,18],[9,16,11,18],[12,16,15,18],[66,9,78,9],[4,1,4,3],[4,4,4,6],[4,9,4,14],[6,9,18,9],[21,9,33,9],[36,9,48,9],[47,0,47,6],[48,0,51,6],[51,9,63,9]]}
[{"$f":"+'Cover Page'!$B$29","v":"Annual Performance Report 2022"},null,null,null,{"$f":"+'Cover Page'!$B$33","v":"SUEZ R&R Wilton 11 EfW"}]
[]
["Monitoring of Particulate matter emissions",null,null,"Whole Installation",null,null,"See  Notes in Cell Q3",null,null,{"$f":"+A3","v":"Monitoring of Particulate matter emissions"},null,null,null,"Per Combustion Line",null,null,"Notes:"]
[null,null,null,null,null,null,null,null,null,null,null,null,null,null,null,null,"User to add logic to complete Whole installation, Table A5:G18. From the data in Per Combustion Line, Table J6:O79, subject to No. of lines installed"]
["mg/Nm3","1/2 Hourly Reference Periods",null,null,"Daily Reference Periods"]
[{"$f":"+'Cover Page'!C39","v":2022},"1/2 hourly PM ELV","Monthly 1/2 hourly mean","Highest 1/2 hourly maximum","Daily PM ELV","Monthly daily mean","Highest daily maximum",null,null,{"$f":"+A6","v":2022},"mg/Nm3","Monthly 1/2 hourly mean","Monthly 1/2 hourly maximum","Monthly daily mean","Monthly daily maximum"]
["Jan",30,{"$f":"AVERAGE(L7,L22)","v":0.4},{"$f":"MAX(M7,M22)","v":1.7},10,{"$f":"AVERAGE(N7,N22)","v":0.4},{"$f":"MAX(O7,O22)","v":0.5},null,null,"A1","Jan",0.4,0.6,0.4,0.5]
["Feb",30,{"$f":"AVERAGE(L8,L23)","v":0.4},{"$f":"MAX(M8,M23)","v":0.6},10,{"$f":"AVERAGE(N8,N23)","v":0.4},{"$f":"MAX(O8,O23)","v":0.5},null,null,null,"Feb",0.4,0.5,0.4,0.5]
["Mar",30,0.4,0.6,10,0.4,0.5,null,null,null,"Mar",0.4,0.6,0.4,0.5,null,"Whole Installation table A5:G18:"]
["Apr",30,0.45,6.2,10,0.45,0.5,null,null,null,"Apr",0.5,6.2,0.5,0.5,null,"Mean: for 1/2 hourly and daily periods calculate mean of values across all operational combustion lines for the month"]
["May",30,0.45,1.1000000000000001,10,0.45,0.5,null,null,null,"May",0.5,1.1000000000000001,0.5,0.5]
["Jun",30,0.4,0.8,10,0.4,0.5,null,null,null,"Jun",0.4,0.8,0.4,0.5]
["Jul",30,0.45,0.7,10,0.45,0.6,null,null,null,"Jul",0.5,0.7,0.5,0.6,null,"Maximum: for 1/2 hourly and daily periods use the highest value across all operational combustion lines for the month"]
["Aug",30,0.45,4.8,10,0.45,0.6,null,null,null,"Aug",0.5,4.8,0.5,0.6]
["Sep",30,0.4,0.7,10,0.4,0.4,null,null,null,"Sep"]
["Oct",30,0.4,0.6,10,0.4,0.4,null,null,null,"Oct"]
["Nov",30,0.6,4.9000000000000004,10,0.6,1.1000000000000001,null,null,null,"Nov",0.6,4.9000000000000004,0.6,1.1000000000000001]
["Dec",30,0.89999999999999991,4.7,10,0.89999999999999991,1.7,null,null,null,"Dec",1.4,4.7,1.4,1.7]
[null,null,null,null,null,null,null,null,null,null,"Annual",{"$f":"AVERAGE(L7:L18)","v":0.55999999999999994},{"$f":"MAX(M7:M18)","v":6.2},{"$f":"AVERAGE(N7:N18)","v":0.55999999999999994},{"$f":"MAX(O7:O18)","v":1.7}]
[]
[null,null,null,null,null,null,null,null,null,{"$f":"+A6","v":2022},"mg/Nm3","Monthly 1/2 hourly mean","Monthly 1/2 hourly maximum","Monthly daily mean","Monthly daily maximum"]
[null,null,null,null,null,null,null,null,null,"A2","Jan",0.4,1.7,0.4,0.5]
[null,null,null,null,null,null,null,null,null,null,"Feb",0.4,0.6,0.4,0.4]
[null,null,null,null,null,null,null,null,null,null,"Mar",0.4,0.6,0.4,0.4]
[null,null,null,null,null,null,null,null,null,null,"Apr",0.4,4.0999999999999996,0.4,0.4]
[null,null,null,null,null,null,null,null,null,null,"May",0.4,0.6,0.4,0.4]
[null,null,null,null,null,null,null,null,null,null,"Jun",0.4,0.5,0.4,0.4]
[null,null,null,null,null,null,null,null,null,null,"Jul",0.4,0.6,0.4,0.4]
[null,null,null,null,null,null,null,null,null,null,"Aug",0.4,0.7,0.4,0.4]
[null,null,null,null,null,null,null,null,null,null,"Sep",0.4,0.7,0.4,0.4]
[null,null,null,null,null,null,null,null,null,null,"Oct",0.4,0.6,0.4,0.4]
[null,null,null,null,null,null,null,null,null,null,"Nov"]
[null,null,null,null,null,null,null,null,null,null,"Dec",0.4,0.6,0.4,0.4]
[null,null,null,null,null,null,null,null,null,null,"Annual",{"$f":"AVERAGE(L22:L33)","v":0.39999999999999997},{"$f":"MAX(M22:M33)","v":4.0999999999999996},{"$f":"AVERAGE(N22:N33)","v":0.39999999999999997},{"$f":"MAX(O22:O33)","v":0.5}]
[]
[null,null,null,null,null,null,null,null,null,{"$f":"+A6","v":2022},"mg/Nm3","Monthly 1/2 hourly mean","Monthly 1/2 hourly maximum","Monthly daily mean","Monthly daily maximum"]
[null,null,null,null,null,null,null,null,null,"A3","Jan"]
[null,null,null,null,null,null,null,null,null,null,"Feb"]
[null,null,null,null,null,null,null,null,null,null,"Mar"]
[null,null,null,null,null,null,null,null,null,null,"Apr"]
[null,null,null,null,null,null,null,null,null,null,"May"]
[null,null,null,null,null,null,null,null,null,null,"Jun"]
[null,null,null,null,null,null,null,null,null,null,"Jul"]
[null,null,null,null,null,null,null,null,null,null,"Aug"]
[null,null,null,null,null,null,null,null,null,null,"Sep"]
[null,null,null,null,null,null,null,null,null,null,"Oct"]
[null,null,null,null,null,null,null,null,null,null,"Nov"]
["Comments :",null,null,null,null,null,null,null,null,null,"Dec"]
[null,null,null,null,null,null,null,null,null,null,"Annual",{"$f":"AVERAGE(L37:L48)","v":{"$error":"#DIV/0!"}},{"$f":"MAX(M37:M48)","v":0},{"$f":"AVERAGE(N37:N48)","v":{"$error":"#DIV/0!"}},{"$f":"MAX(O37:O48)","v":0}]
[]
[null,null,null,null,null,null,null,null,null,{"$f":"+A6","v":2022},"mg/Nm3","Monthly 1/2 hourly mean","Monthly 1/2 hourly maximum","Monthly daily mean","Monthly daily maximum"]
[null,null,null,null,null,null,null,null,null,"A4","Jan"]
[null,null,null,null,null,null,null,null,null,null,"Feb"]
[null,null,null,null,null,null,null,null,null,null,"Mar"]
[null,null,null,null,null,null,null,null,null,null,"Apr"]
[null,null,null,null,null,null,null,null,null,null,"May"]
[null,null,null,null,null,null,null,null,null,null,"Jun"]
[null,null,null,null,null,null,null,null,null,null,"Jul"]
[null,null,null,null,null,null,null,null,null,null,"Aug"]
[null,null,null,null,null,null,null,null,null,null,"Sep"]
[null,null,null,null,null,null,null,null,null,null,"Oct"]
[null,null,null,null,null,null,null,null,null,null,"Nov"]
[null,null,null,null,null,null,null,null,null,null,"Dec"]
[null,null,null,null,null,null,null,null,null,null,"Annual",{"$f":"AVERAGE(L52:L63)","v":{"$error":"#DIV/0!"}},{"$f":"MAX(M52:M63)","v":0},{"$f":"AVERAGE(N52:N63)","v":{"$error":"#DIV/0!"}},{"$f":"MAX(O52:O63)","v":0}]
[]
[null,null,null,null,null,null,null,null,null,{"$f":"+A6","v":2022},"mg/Nm3","Monthly 1/2 hourly mean","Monthly 1/2 hourly maximum","Monthly daily mean","Monthly daily maximum"]
[null,null,null,null,null,null,null,null,null,"A5","Jan"]
[null,null,null,null,null,null,null,null,null,null,"Feb"]
[null,null,null,null,null,null,null,null,null,null,"Mar"]
[null,null,null,null,null,null,null,null,null,null,"Apr"]
[null,null,null,null,null,null,null,null,null,null,"May"]
[null,null,null,null,null,null,null,null,null,null,"Jun"]
[null,null,null,null,null,null,null,null,null,null,"Jul"]
[null,null,null,null,null,null,null,null,null,null,"Aug"]
[null,null,null,null,null,null,null,null,null,null,"Sep"]
[null,null,null,null,null,null,null,null,null,null,"Oct"]
[null,null,null,null,null,null,null,null,null,null,"Nov"]
[null,null,null,null,null,null,null,null,null,null,"Dec"]
[null,null,null,null,null,null,null,null,null,null,"Annual",{"$f":"AVERAGE(L67:L78)","v":{"$error":"#DIV/0!"}},{"$f":"MAX(M67:M78)","v":0},{"$f":"AVERAGE(N67:N78)","v":{"$error":"#DIV/0!"}},{"$f":"MAX(O67:O78)","v":0}]

{"sheet":"CO 95% 10 min","index":20,"n_rows":79,"n_cols":19,"rows_kept":79,"cut":false,"hidden":false,"merged":[[3,18,7,20],[9,18,11,20],[12,18,15,20],[66,10,78,10],[4,1,4,4],[4,5,4,7],[4,10,4,16],[6,10,18,10],[21,10,33,10],[36,10,48,10],[47,0,47,7],[48,0,51,7],[51,10,63,10]]}
[{"$f":"+'Cover Page'!$B$29","v":"Annual Performance Report 2022"},null,null,null,{"$f":"+'Cover Page'!$B$33","v":"SUEZ R&R Wilton 11 EfW"}]
[]
["Monitoring of Carbon Monoxide (10-minute avg)",null,null,null,"Whole Installation",null,null,"See  Notes in Cell S3",null,{"$f":"+A3","v":"Monitoring of Carbon Monoxide (10-minute avg)"},null,null,null,null,"Per Combustion Line",null,"Notes:",null,"Notes:"]
[null,null,null,null,null,null,null,null,null,null,null,null,null,null,null,null,null,null,"User to add logic to complete Whole installation, Table A5:H18. From the data in Per Combustion Line, Table K6:Q79, subject to No. of lines installed"]
["mg/Nm3","10-minute Reference Periods",null,null,null,"Daily Reference Periods"]
[{"$f":"+'Cover Page'!C39","v":2022},"95%ile 10-min avg CO ELV","95%ile 10-min avg maximum","Monthly CO 10-min avg mean","10-min avg maximum","Daily CO ELV","Monthly daily mean","Highest daily maximum",null,null,{"$f":"+A6","v":2022},"mg/Nm3","95%ile 10-min avg maximum","Monthly CO 10-min avg mean","10-min avg maximum","Monthly daily mean","Monthly daily maximum"]
["Jan",150,{"$f":"MAX(M7,M22)","v":8},{"$f":"AVERAGE(N7,N22)","v":7.5},{"$f":"MAX(O7,O22)","v":1600},50,{"$f":"AVERAGE(P7,P22)","v":7.5},{"$f":"MAX(Q7,Q22)","v":42},null,null,"A1","Jan",7,8,44,8,9]
["Feb",{"$f":"+B7","v":150},{"$f":"MAX(M8,M23)","v":11},{"$f":"AVERAGE(N8,N23)","v":7},{"$f":"MAX(O8,O23)","v":208},{"$f":"+F7","v":50},{"$f":"AVERAGE(P8,P23)","v":7},{"$f":"MAX(Q8,Q23)","v":10},null,null,null,"Feb",7,6,208,6,7]
["Mar",{"$f":"+B8","v":150},12,6.5,167,{"$f":"+F8","v":50},6.5,9,null,null,null,"Mar",12,8,167,8,9,null,"Whole Installation table A5:H18:"]
["Apr",150,13,7,105,50,7,10,null,null,null,"Apr",13,9,105,9,10,null,"Mean: for 10-min and daily periods use average of all operational combustion lines."]
["May",150,9,7,166,50,7,11,null,null,null,"May",9,9,166,9,11]
["Jun",150,14,7,157,50,7,11,null,null,null,"Jun",9,5,108,5,6]
["Jul",150,9,7,993,50,7,18,null,null,null,"Jul",9,9,993,9,18,null,"Maximum: for 10-min and daily periods use the highest of all operational combustion lines in any month."]
["Aug",150,15,10,2903,50,10,14,null,null,null,"Aug",15,15,2903,15,14]
["Sep",150,5,5,285,50,5,7,null,null,null,"Sep"]
["Oct",150,5,5,200,50,5,7,null,null,null,"Oct"]
["Nov",150,11,11,390,50,11,12,null,null,null,"Nov",11,11,390,11,12]
["Dec",150,28,7,350,50,7,14,null,null,null,"Dec",28,9,350,9,14]
[null,null,null,null,null,null,null,null,null,null,null,"Annual",{"$f":"AVERAGE(M7:M18)","v":12},null,{"$f":"MAX(O7:O18)","v":2903},{"$f":"AVERAGE(P7:P18)","v":8.9},{"$f":"MAX(Q7:Q18)","v":18}]
[]
[null,null,null,null,null,null,null,null,null,null,{"$f":"+A6","v":2022},"mg/Nm3","95%ile 10-min avg maximum","Monthly CO 10-min avg mean","10-min avg maximum","Monthly daily mean","Monthly daily maximum"]
[null,null,null,null,null,null,null,null,null,null,"A2","Jan",8,7,1600,7,42]
[null,null,null,null,null,null,null,null,null,null,null,"Feb",11,8,182,8,10]
[null,null,null,null,null,null,null,null,null,null,null,"Mar",8,5,49,5,6]
[null,null,null,null,null,null,null,null,null,null,null,"Apr",7,5,72,5,5]
[null,null,null,null,null,null,null,null,null,null,null,"May",5,5,123,5,6]
[null,null,null,null,null,null,null,null,null,null,null,"Jun",14,9,157,9,11]
[null,null,null,null,null,null,null,null,null,null,null,"Jul",5,5,504,5,9]
[null,null,null,null,null,null,null,null,null,null,null,"Aug",5,5,239,5,6]
[null,null,null,null,null,null,null,null,null,null,null,"Sep",5,5,285,5,7]
[null,null,null,null,null,null,null,null,null,null,null,"Oct",5,5,200,5,7]
[null,null,null,null,null,null,null,null,null,null,null,"Nov"]
[null,null,null,null,null,null,null,null,null,null,null,"Dec",7,5,113,5,7]
[null,null,null,null,null,null,null,null,null,null,null,"Annual",{"$f":"AVERAGE(M22:M33)","v":7.2727272727272725},null,{"$f":"MAX(O22:O33)","v":1600},{"$f":"AVERAGE(P22:P33)","v":5.8181818181818183},{"$f":"MAX(Q22:Q33)","v":42}]
[]
[null,null,null,null,null,null,null,null,null,null,{"$f":"+A6","v":2022},"mg/Nm3","95%ile 10-min avg maximum","Monthly CO 10-min avg mean","10-min avg maximum","Monthly daily mean","Monthly daily maximum"]
[null,null,null,null,null,null,null,null,null,null,"A3","Jan"]
[null,null,null,null,null,null,null,null,null,null,null,"Feb"]
[null,null,null,null,null,null,null,null,null,null,null,"Mar"]
[null,null,null,null,null,null,null,null,null,null,null,"Apr"]
[null,null,null,null,null,null,null,null,null,null,null,"May"]
[null,null,null,null,null,null,null,null,null,null,null,"Jun"]
[null,null,null,null,null,null,null,null,null,null,null,"Jul"]
[null,null,null,null,null,null,null,null,null,null,null,"Aug"]
[null,null,null,null,null,null,null,null,null,null,null,"Sep"]
[null,null,null,null,null,null,null,null,null,null,null,"Oct"]
[null,null,null,null,null,null,null,null,null,null,null,"Nov"]
["Comments :",null,null,null,null,null,null,null,null,null,null,"Dec"]
["Environment Agency explanatory note: The 10-minute average ELV is based on the “95th percentile”. In this case this means that 95% of the 10 minute averages in the relevant 24-hour period (i.e. 137) must be below 150 mg/Nm3, and 5% (i.e. 7) are allowed to be any value above 150 mg/Nm3. Whilst we expect operators to minimise CO emissions at all times, it is perfectly acceptable for the value of the maximum 10-minute average to be above 150 mg/Nm3, provided the 95th percentile ELV has been met for that period. ",null,null,null,null,null,null,null,null,null,null,"Annual",{"$f":"AVERAGE(M37:M48)","v":{"$error":"#DIV/0!"}},null,{"$f":"MAX(O37:O48)","v":0},{"$f":"AVERAGE(P37:P48)","v":{"$error":"#DIV/0!"}},{"$f":"MAX(Q37:Q48)","v":0}]
[]
[null,null,null,null,null,null,null,null,null,null,{"$f":"+A6","v":2022},"mg/Nm3","95%ile 10-min avg maximum","Monthly CO 10-min avg mean","10-min avg maximum","Monthly daily mean","Monthly daily maximum"]
[null,null,null,null,null,null,null,null,null,null,"A4","Jan"]
[null,null,null,null,null,null,null,null,null,null,null,"Feb"]
[null,null,null,null,null,null,null,null,null,null,null,"Mar"]
[null,null,null,null,null,null,null,null,null,null,null,"Apr"]
[null,null,null,null,null,null,null,null,null,null,null,"May"]
[null,null,null,null,null,null,null,null,null,null,null,"Jun"]
[null,null,null,null,null,null,null,null,null,null,null,"Jul"]
[null,null,null,null,null,null,null,null,null,null,null,"Aug"]
[null,null,null,null,null,null,null,null,null,null,null,"Sep"]
[null,null,null,null,null,null,null,null,null,null,null,"Oct"]
[null,null,null,null,null,null,null,null,null,null,null,"Nov"]
[null,null,null,null,null,null,null,null,null,null,null,"Dec"]
[null,null,null,null,null,null,null,null,null,null,null,"Annual",{"$f":"AVERAGE(M52:M63)","v":{"$error":"#DIV/0!"}},null,{"$f":"MAX(O52:O63)","v":0},{"$f":"AVERAGE(P52:P63)","v":{"$error":"#DIV/0!"}},{"$f":"MAX(Q52:Q63)","v":0}]
[]
[null,null,null,null,null,null,null,null,null,null,{"$f":"+A6","v":2022},"mg/Nm3","95%ile 10-min avg maximum","Monthly CO 10-min avg mean","10-min avg maximum","Monthly daily mean","Monthly daily maximum"]
[null,null,null,null,null,null,null,null,null,null,"A5","Jan"]
[null,null,null,null,null,null,null,null,null,null,null,"Feb"]
[null,null,null,null,null,null,null,null,null,null,null,"Mar"]
[null,null,null,null,null,null,null,null,null,null,null,"Apr"]
[null,null,null,null,null,null,null,null,null,null,null,"May"]
[null,null,null,null,null,null,null,null,null,null,null,"Jun"]
[null,null,null,null,null,null,null,null,null,null,null,"Jul"]
[null,null,null,null,null,null,null,null,null,null,null,"Aug"]
[null,null,null,null,null,null,null,null,null,null,null,"Sep"]
[null,null,null,null,null,null,null,null,null,null,null,"Oct"]
[null,null,null,null,null,null,null,null,null,null,null,"Nov"]
[null,null,null,null,null,null,null,null,null,null,null,"Dec"]
[null,null,null,null,null,null,null,null,null,null,null,"Annual",{"$f":"AVERAGE(M67:M78)","v":{"$error":"#DIV/0!"}},null,{"$f":"MAX(O67:O78)","v":0},{"$f":"AVERAGE(P67:P78)","v":{"$error":"#DIV/0!"}},{"$f":"MAX(Q67:Q78)","v":0}]

{"sheet":"NH3","index":21,"n_rows":79,"n_cols":17,"rows_kept":79,"cut":false,"hidden":false,"merged":[[3,16,7,18],[9,16,11,18],[12,16,15,18],[66,9,78,9],[4,1,4,3],[4,4,4,6],[4,9,4,14],[6,9,18,9],[21,9,33,9],[36,9,48,9],[47,0,47,6],[48,0,51,6],[51,9,63,9]]}
[{"$f":"+'Cover Page'!$B$29","v":"Annual Performance Report 2022"},null,null,null,{"$f":"+'Cover Page'!$B$33","v":"SUEZ R&R Wilton 11 EfW"}]
[]
["Monitoring of Ammnonia emissions ",null,null,"Whole Installation",null,null,"See  Notes in Cell Q3",null,null,{"$f":"+A3","v":"Monitoring of Ammnonia emissions "},null,null,null,"Per Combustion Line",null,null,"Notes:"]
[null,null,null,null,null,null,null,null,null,null,null,null,null,null,null,null,"User to add logic to complete Whole installation, Table A5:G18. From the data in Per Combustion Line, Table J6:O79, subject to No. of lines installed"]
["mg/Nm3","1/2 Hourly Reference Periods",null,null,"Daily Reference Periods"]
[{"$f":"+'Cover Page'!C39","v":2022},"1/2 hourly NH3 ELV","Monthly 1/2 hourly mean","Highest 1/2 hourly maximum","Daily NH3 ELV","Monthly daily mean","Highest daily maximum",null,null,{"$f":"+A6","v":2022},"mg/Nm3","Monthly 1/2 hourly mean","Monthly 1/2 hourly maximum","Monthly daily mean","Monthly daily maximum"]
["Jan",0,{"$f":"AVERAGE(L7,L22)","v":0},{"$f":"MAX(M7,M22)","v":23},10,{"$f":"AVERAGE(N7,N22)","v":0},{"$f":"MAX(O7,O22)","v":1},null,null,"A1","Jan",0,3,0,1]
["Feb",{"$f":"+B7","v":0},{"$f":"AVERAGE(L8,L23)","v":0.5},{"$f":"MAX(M8,M23)","v":3},{"$f":"+E7","v":10},{"$f":"AVERAGE(N8,N23)","v":0.5},{"$f":"MAX(O8,O23)","v":1},null,null,null,"Feb",0,2,0,1]
["Mar",{"$f":"+B8","v":0},{"$f":"AVERAGE(L9,L24)","v":0},4,{"$f":"+E8","v":10},0,1,null,null,null,"Mar",0,2,0,1,null,"Whole Installation table A5:G18:"]
["Apr",0,{"$f":"AVERAGE(L10,L25)","v":0},15,10,0,1,null,null,null,"Apr",0,13,0,0,null,"Mean: for 1/2 hourly and daily periods calculate mean of values across all operational combustion lines for the month"]
["May",0,{"$f":"AVERAGE(L11,L26)","v":0.5},8,10,0.5,1,null,null,null,"May",0,8,0,1]
["Jun",0,{"$f":"AVERAGE(L12,L27)","v":0},9,10,0,1,null,null,null,"Jun",0,9,0,0]
["Jul",0,{"$f":"AVERAGE(L13,L28)","v":0.5},6,10,0.5,2,null,null,null,"Jul",0,5,0,2,null,"Maximum: for 1/2 hourly and daily periods use the highest value across all operational combustion lines for the month"]
["Aug",0,{"$f":"AVERAGE(L14,L29)","v":0.5},7,10,0.5,3,null,null,null,"Aug",1,7,1,3]
["Sep",0,{"$f":"AVERAGE(L15,L30)","v":0},6,10,0,1,null,null,null,"Sep"]
["Oct",0,{"$f":"AVERAGE(L16,L31)","v":0},5,10,0,0,null,null,null,"Oct"]
["Nov",0,{"$f":"AVERAGE(L17,L32)","v":1},5,10,1,3,null,null,null,"Nov",1,5,1,3]
["Dec",0,{"$f":"AVERAGE(L18,L33)","v":1},17,10,1,5,null,null,null,"Dec",1,17,1,5]
[null,null,null,null,null,null,null,null,null,null,"Annual",{"$f":"AVERAGE(L7:L18)","v":0.3},{"$f":"MAX(M7:M18)","v":17},{"$f":"AVERAGE(N7:N18)","v":0.3},{"$f":"MAX(O7:O18)","v":5}]
[]
[null,null,null,null,null,null,null,null,null,{"$f":"+A6","v":2022},"mg/Nm3","Monthly 1/2 hourly mean","Monthly 1/2 hourly maximum","Monthly daily mean","Monthly daily maximum"]
[null,null,null,null,null,null,null,null,null,"A2","Jan",0,23,0,1]
[null,null,null,null,null,null,null,null,null,null,"Feb",1,3,1,1]
[null,null,null,null,null,null,null,null,null,null,"Mar",0,4,0,1]
[null,null,null,null,null,null,null,null,null,null,"Apr",0,15,0,1]
[null,null,null,null,null,null,null,null,null,null,"May",1,6,1,1]
[null,null,null,null,null,null,null,null,null,null,"Jun",0,5,0,1]
[null,null,null,null,null,null,null,null,null,null,"Jul",1,6,1,2]
[null,null,null,null,null,null,null,null,null,null,"Aug",0,4,0,1]
[null,null,null,null,null,null,null,null,null,null,"Sep",0,6,0,1]
[null,null,null,null,null,null,null,null,null,null,"Oct",0,5,0,0]
[null,null,null,null,null,null,null,null,null,null,"Nov"]
[null,null,null,null,null,null,null,null,null,null,"Dec",1,4,1,2]
[null,null,null,null,null,null,null,null,null,null,"Annual",{"$f":"AVERAGE(L22:L33)","v":0.36363636363636365},{"$f":"MAX(M22:M33)","v":23},{"$f":"AVERAGE(N22:N33)","v":0.36363636363636365},{"$f":"MAX(O22:O33)","v":2}]
[]
[null,null,null,null,null,null,null,null,null,{"$f":"+A6","v":2022},"mg/Nm3","Monthly 1/2 hourly mean","Monthly 1/2 hourly maximum","Monthly daily mean","Monthly daily maximum"]
[null,null,null,null,null,null,null,null,null,"A3","Jan"]
[null,null,null,null,null,null,null,null,null,null,"Feb"]
[null,null,null,null,null,null,null,null,null,null,"Mar"]
[null,null,null,null,null,null,null,null,null,null,"Apr"]
[null,null,null,null,null,null,null,null,null,null,"May"]
[null,null,null,null,null,null,null,null,null,null,"Jun"]
[null,null,null,null,null,null,null,null,null,null,"Jul"]
[null,null,null,null,null,null,null,null,null,null,"Aug"]
[null,null,null,null,null,null,null,null,null,null,"Sep"]
[null,null,null,null,null,null,null,null,null,null,"Oct"]
[null,null,null,null,null,null,null,null,null,null,"Nov"]
["Comments :",null,null,null,null,null,null,null,null,null,"Dec"]
["An indicated ELV value of zero in the table above means that no ammonia limit is set in the permit.  ",null,null,null,null,null,null,null,null,null,"Annual",{"$f":"AVERAGE(L37:L48)","v":{"$error":"#DIV/0!"}},{"$f":"MAX(M37:M48)","v":0},{"$f":"AVERAGE(N37:N48)","v":{"$error":"#DIV/0!"}},{"$f":"MAX(O37:O48)","v":0}]
[]
[null,null,null,null,null,null,null,null,null,{"$f":"+A6","v":2022},"mg/Nm3","Monthly 1/2 hourly mean","Monthly 1/2 hourly maximum","Monthly daily mean","Monthly daily maximum"]
[null,null,null,null,null,null,null,null,null,"A4","Jan"]
[null,null,null,null,null,null,null,null,null,null,"Feb"]
[null,null,null,null,null,null,null,null,null,null,"Mar"]
[null,null,null,null,null,null,null,null,null,null,"Apr"]
[null,null,null,null,null,null,null,null,null,null,"May"]
[null,null,null,null,null,null,null,null,null,null,"Jun"]
[null,null,null,null,null,null,null,null,null,null,"Jul"]
[null,null,null,null,null,null,null,null,null,null,"Aug"]
[null,null,null,null,null,null,null,null,null,null,"Sep"]
[null,null,null,null,null,null,null,null,null,null,"Oct"]
[null,null,null,null,null,null,null,null,null,null,"Nov"]
[null,null,null,null,null,null,null,null,null,null,"Dec"]
[null,null,null,null,null,null,null,null,null,null,"Annual",{"$f":"AVERAGE(L52:L63)","v":{"$error":"#DIV/0!"}},{"$f":"MAX(M52:M63)","v":0},{"$f":"AVERAGE(N52:N63)","v":{"$error":"#DIV/0!"}},{"$f":"MAX(O52:O63)","v":0}]
[]
[null,null,null,null,null,null,null,null,null,{"$f":"+A6","v":2022},"mg/Nm3","Monthly 1/2 hourly mean","Monthly 1/2 hourly maximum","Monthly daily mean","Monthly daily maximum"]
[null,null,null,null,null,null,null,null,null,"A5","Jan"]
[null,null,null,null,null,null,null,null,null,null,"Feb"]
[null,null,null,null,null,null,null,null,null,null,"Mar"]
[null,null,null,null,null,null,null,null,null,null,"Apr"]
[null,null,null,null,null,null,null,null,null,null,"May"]
[null,null,null,null,null,null,null,null,null,null,"Jun"]
[null,null,null,null,null,null,null,null,null,null,"Jul"]
[null,null,null,null,null,null,null,null,null,null,"Aug"]
[null,null,null,null,null,null,null,null,null,null,"Sep"]
[null,null,null,null,null,null,null,null,null,null,"Oct"]
[null,null,null,null,null,null,null,null,null,null,"Nov"]
[null,null,null,null,null,null,null,null,null,null,"Dec"]
[null,null,null,null,null,null,null,null,null,null,"Annual",{"$f":"AVERAGE(L67:L78)","v":{"$error":"#DIV/0!"}},{"$f":"MAX(M67:M78)","v":0},{"$f":"AVERAGE(N67:N78)","v":{"$error":"#DIV/0!"}},{"$f":"MAX(O67:O78)","v":0}]